Workbook

Sheet 1月
B2: 2009 | C2: 年 | D2: =DATE(B2,1,1) -> 2009-01-01 | E2: 月の家計簿 | I2: 毎日の記録 | J2: =DATE(B2,1,1) -> 2009-01-01 | K2: =TEXT(J2,"(aaa)") -> (Thu) | L2: =J2+1 -> 2009-01-02 | M2: =TEXT(L2,"(aaa)") -> (Fri) | N2: =L2+1 -> 2009-01-03 | O2: =TEXT(N2,"(aaa)") -> (Sat) | P2: =N2+1 -> 2009-01-04 | Q2: =TEXT(P2,"(aaa)") -> (Sun) | R2: =P2+1 -> 2009-01-05 | S2: =TEXT(R2,"(aaa)") -> (Mon) | T2: =R2+1 -> 2009-01-06 | U2: =TEXT(T2,"(aaa)") -> (Tue) | V2: =T2+1 -> 2009-01-07 | W2: =TEXT(V2,"(aaa)") -> (Wed) | X2: =V2+1 -> 2009-01-08 | Y2: =TEXT(X2,"(aaa)") -> (Thu) | Z2: =X2+1 -> 2009-01-09 | AA2: =TEXT(Z2,"(aaa)") -> (Fri) | AB2: =Z2+1 -> 2009-01-10 | AC2: =TEXT(AB2,"(aaa)") -> (Sat) | AD2: =AB2+1 -> 2009-01-11 | AE2: =TEXT(AD2,"(aaa)") -> (Sun) | AF2: =AD2+1 -> 2009-01-12 | AG2: =TEXT(AF2,"(aaa)") -> (Mon) | AH2: =AF2+1 -> 2009-01-13 | AI2: =TEXT(AH2,"(aaa)") -> (Tue) | AJ2: =AH2+1 -> 2009-01-14 | AK2: =TEXT(AJ2,"(aaa)") -> (Wed) | AL2: =AJ2+1 -> 2009-01-15 | AM2: =TEXT(AL2,"(aaa)") -> (Thu) | AN2: =AL2+1 -> 2009-01-16 | AO2: =TEXT(AN2,"(aaa)") -> (Fri) | AP2: =AN2+1 -> 2009-01-17 | AQ2: =TEXT(AP2,"(aaa)") -> (Sat) | AR2: =AP2+1 -> 2009-01-18 | AS2: =TEXT(AR2,"(aaa)") -> (Sun) | AT2: =AR2+1 -> 2009-01-19 | AU2: =TEXT(AT2,"(aaa)") -> (Mon) | AV2: =AT2+1 -> 2009-01-20 | AW2: =TEXT(AV2,"(aaa)") -> (Tue) | AX2: =AV2+1 -> 2009-01-21 | AY2: =TEXT(AX2,"(aaa)") -> (Wed) | AZ2: =AX2+1 -> 2009-01-22 | BA2: =TEXT(AZ2,"(aaa)") -> (Thu) | BB2: =AZ2+1 -> 2009-01-23 | BC2: =TEXT(BB2,"(aaa)") -> (Fri) | BD2: =BB2+1 -> 2009-01-24 | BE2: =TEXT(BD2,"(aaa)") -> (Sat) | BF2: =BD2+1 -> 2009-01-25 | BG2: =TEXT(BF2,"(aaa)") -> (Sun) | BH2: =BF2+1 -> 2009-01-26 | BI2: =TEXT(BH2,"(aaa)") -> (Mon) | BJ2: =BH2+1 -> 2009-01-27 | BK2: =TEXT(BJ2,"(aaa)") -> (Tue) | BL2: =BJ2+1 -> 2009-01-28 | BM2: =TEXT(BL2,"(aaa)") -> (Wed) | BN2: =BL2+1 -> 2009-01-29 | BO2: =TEXT(BN2,"(aaa)") -> (Thu) | BP2: =BN2+1 -> 2009-01-30 | BQ2: =TEXT(BP2,"(aaa)") -> (Fri) | BR2: =BP2+1 -> 2009-01-31 | BS2: =TEXT(BR2,"(aaa)") -> (Sat)
J3: 品名 | K3: 金額 | L3: 品名 | M3: 金額 | N3: 品名 | O3: 金額 | P3: 品名 | Q3: 金額 | R3: 品名 | S3: 金額 | T3: 品名 | U3: 金額 | V3: 品名 | W3: 金額 | X3: 品名 | Y3: 金額 | Z3: 品名 | AA3: 金額 | AB3: 品名 | AC3: 金額 | AD3: 品名 | AE3: 金額 | AF3: 品名 | AG3: 金額 | AH3: 品名 | AI3: 金額 | AJ3: 品名 | AK3: 金額 | AL3: 品名 | AM3: 金額 | AN3: 品名 | AO3: 金額 | AP3: 品名 | AQ3: 金額 | AR3: 品名 | AS3: 金額 | AT3: 品名 | AU3: 金額 | AV3: 品名 | AW3: 金額 | AX3: 品名 | AY3: 金額 | AZ3: 品名 | BA3: 金額 | BB3: 品名 | BC3: 金額 | BD3: 品名 | BE3: 金額 | BF3: 品名 | BG3: 金額 | BH3: 品名 | BI3: 金額 | BJ3: 品名 | BK3: 金額 | BL3: 品名 | BM3: 金額 | BN3: 品名 | BO3: 金額 | BP3: 品名 | BQ3: 金額 | BR3: 品名 | BS3: 金額
B4: 今月の収入 | F4: 今月の生活費 | I4: 主食 | J4: 米５Ｋｇ | K4: 2,600
B5: 項目 | C5: 金額 | D5: 入金日 | F5: 項目 | G5: 購入金額 | J5: 食パン | K5: 160
B6: 給料（手取り） | C6: 300,000 | F6: 食費合計 | G6: =SUM(J19:BS19) -> 6,951
F7: 日用雑貨合計 | G7: =SUM(J20:BS25) -> 398 | I7: 副食 | J7: 卵６個 | K7: 168 | L7: 鳥ムネ肉 | M7: 552
F8: 教育・教養費 | G8: =SUM(J26:BS27) -> 1200 | J8: キャベツ | K8: 200 | L8: 長ネギ３本 | M8: 250
B9: ボーナス | F9: 上記以外合計 | G9: =SUM(J28:BS39) -> 3500 | J9: ブロッコリー | K9: 250 | L9: ツナ缶+3 | M9: 346
B10: 収入合計 | C10: =SUM(C6:C9) -> ¥300,000 | F10: 生活費合計 | G10: =SUM(G6:G9) -> ¥12,049 | L10: りんご２個 | M10: 300
B13: 今月の固定支出
F14: 今月の残金
B15: 項目 | C15: 金額 | D15: 支払日 | I15: 嗜好品 | J15: ビール６本 | K15: 1,980 | L15: ポテトチップ | M15: 145
B16: 電気代 | C16: 4,500 | F16: =C10-C37-G10+SUM(J41:BS41) -> ¥116,231
B17: ガス代 | C17: 3,800
B18: 水道代 | C18: 1,040 | F18: 累計残金 | I18: 外食
B19: 電話代 | C19: 4,000 | I19: 食費合計 | K19: =SUM(K4:K18) -> ¥5,358 | M19: =SUM(M4:M18) -> ¥1,593 | O19: =SUM(O4:O18) -> ¥0 | Q19: =SUM(Q4:Q18) -> ¥0 | S19: =SUM(S4:S18) -> ¥0 | U19: =SUM(U4:U18) -> ¥0 | W19: =SUM(W4:W18) -> ¥0 | Y19: =SUM(Y4:Y18) -> ¥0 | AA19: =SUM(AA4:AA18) -> ¥0 | AC19: =SUM(AC4:AC18) -> ¥0 | AE19: =SUM(AE4:AE18) -> ¥0 | AG19: =SUM(AG4:AG18) -> ¥0 | AI19: =SUM(AI4:AI18) -> ¥0 | AK19: =SUM(AK4:AK18) -> ¥0 | AM19: =SUM(AM4:AM18) -> ¥0 | AO19: =SUM(AO4:AO18) -> ¥0 | AQ19: =SUM(AQ4:AQ18) -> ¥0 | AS19: =SUM(AS4:AS18) -> ¥0 | AU19: =SUM(AU4:AU18) -> ¥0 | AW19: =SUM(AW4:AW18) -> ¥0 | AY19: =SUM(AY4:AY18) -> ¥0 | BA19: =SUM(BA4:BA18) -> ¥0 | BC19: =SUM(BC4:BC18) -> ¥0 | BE19: =SUM(BE4:BE18) -> ¥0 | BG19: =SUM(BG4:BG18) -> ¥0 | BI19: =SUM(BI4:BI18) -> ¥0 | BK19: =SUM(BK4:BK18) -> ¥0 | BM19: =SUM(BM4:BM18) -> ¥0 | BO19: =SUM(BO4:BO18) -> ¥0 | BQ19: =SUM(BQ4:BQ18) -> ¥0 | BS19: =SUM(BS4:BS18) -> ¥0
B20: 携帯電話代 | C20: 8,600 | F20: =F16 -> ¥116,231 | I20: 日用雑貨 | J20: T・ペーパー | K20: 398
B21: 新聞代 | C21: 2,980
B22: 受信料 | C22: 2,500 | F22: 今月のひとこと
B23: 住居費 | C23: 114,000
B24: インターネット代 | C24: 1,800
B25: 保険 | C25: 10,000
B26: 定期預金 | C26: 20,000 | I26: 教育・教養費 | L26: 書籍 | M26: 1,200
B27: ローン
B28: クレジット | I28: 衣料費
B29: 税金
B30: こづかい | I30: 医療費
B31: 貯金 | I31: 美容費 | L31: カット | M31: 3,500
I32: 交通費
I33: レジャー費
I34: 慶弔・交際費
I35: その他
B37: 固定支出合計 | C37: =SUM(C16:C36) -> ¥173,220
I40: 支出合計 | K40: =SUM(K19:K39) -> ¥5,756 | M40: =SUM(M19:M39) -> ¥6,293 | O40: =SUM(O19:O39) -> ¥0 | Q40: =SUM(Q19:Q39) -> ¥0 | S40: =SUM(S19:S39) -> ¥0 | U40: =SUM(U19:U39) -> ¥0 | W40: =SUM(W19:W39) -> ¥0 | Y40: =SUM(Y19:Y39) -> ¥0 | AA40: =SUM(AA19:AA39) -> ¥0 | AC40: =SUM(AC19:AC39) -> ¥0 | AE40: =SUM(AE19:AE39) -> ¥0 | AG40: =SUM(AG19:AG39) -> ¥0 | AI40: =SUM(AI19:AI39) -> ¥0 | AK40: =SUM(AK19:AK39) -> ¥0 | AM40: =SUM(AM19:AM39) -> ¥0 | AO40: =SUM(AO19:AO39) -> ¥0 | AQ40: =SUM(AQ19:AQ39) -> ¥0 | AS40: =SUM(AS19:AS39) -> ¥0 | AU40: =SUM(AU19:AU39) -> ¥0 | AW40: =SUM(AW19:AW39) -> ¥0 | AY40: =SUM(AY19:AY39) -> ¥0 | BA40: =SUM(BA19:BA39) -> ¥0 | BC40: =SUM(BC19:BC39) -> ¥0 | BE40: =SUM(BE19:BE39) -> ¥0 | BG40: =SUM(BG19:BG39) -> ¥0 | BI40: =SUM(BI19:BI39) -> ¥0 | BK40: =SUM(BK19:BK39) -> ¥0 | BM40: =SUM(BM19:BM39) -> ¥0 | BO40: =SUM(BO19:BO39) -> ¥0 | BQ40: =SUM(BQ19:BQ39) -> ¥0 | BS40: =SUM(BS19:BS39) -> ¥0
I41: 臨時収入 | M41: ¥1,500
I42: 差引残高 | K42: =C10-C37-K40+K41 -> ¥121,024 | M42: =K42-M40+M41 -> ¥116,231 | O42: =M42-O40+O41 -> ¥116,231 | Q42: =O42-Q40+Q41 -> ¥116,231 | S42: =Q42-S40+S41 -> ¥116,231 | U42: =S42-U40+U41 -> ¥116,231 | W42: =U42-W40+W41 -> ¥116,231 | Y42: =W42-Y40+Y41 -> ¥116,231 | AA42: =Y42-AA40+AA41 -> ¥116,231 | AC42: =AA42-AC40+AC41 -> ¥116,231 | AE42: =AC42-AE40+AE41 -> ¥116,231 | AG42: =AE42-AG40+AG41 -> ¥116,231 | AI42: =AG42-AI40+AI41 -> ¥116,231 | AK42: =AI42-AK40+AK41 -> ¥116,231 | AM42: =AK42-AM40+AM41 -> ¥116,231 | AO42: =AM42-AO40+AO41 -> ¥116,231 | AQ42: =AO42-AQ40+AQ41 -> ¥116,231 | AS42: =AQ42-AS40+AS41 -> ¥116,231 | AU42: =AS42-AU40+AU41 -> ¥116,231 | AW42: =AU42-AW40+AW41 -> ¥116,231 | AY42: =AW42-AY40+AY41 -> ¥116,231 | BA42: =AY42-BA40+BA41 -> ¥116,231 | BC42: =BA42-BC40+BC41 -> ¥116,231 | BE42: =BC42-BE40+BE41 -> ¥116,231 | BG42: =BE42-BG40+BG41 -> ¥116,231 | BI42: =BG42-BI40+BI41 -> ¥116,231 | BK42: =BI42-BK40+BK41 -> ¥116,231 | BM42: =BK42-BM40+BM41 -> ¥116,231 | BO42: =BM42-BO40+BO41 -> ¥116,231 | BQ42: =BO42-BQ40+BQ41 -> ¥116,231 | BS42: =BQ42-BS40+BS41 -> ¥116,231

Sheet 2月
B2: ='1月'!B2 -> 2009 | C2: 年 | D2: =DATE(B2,2,1) -> 2009-02-01 | E2: 月の家計簿 | I2: 毎日の記録 | J2: =DATE(B2,2,1) -> 2009-02-01 | K2: =TEXT(J2,"(aaa)") -> (Sun) | L2: =J2+1 -> 2009-02-02 | M2: =TEXT(L2,"(aaa)") -> (Mon) | N2: =L2+1 -> 2009-02-03 | O2: =TEXT(N2,"(aaa)") -> (Tue) | P2: =N2+1 -> 2009-02-04 | Q2: =TEXT(P2,"(aaa)") -> (Wed) | R2: =P2+1 -> 2009-02-05 | S2: =TEXT(R2,"(aaa)") -> (Thu) | T2: =R2+1 -> 2009-02-06 | U2: =TEXT(T2,"(aaa)") -> (Fri) | V2: =T2+1 -> 2009-02-07 | W2: =TEXT(V2,"(aaa)") -> (Sat) | X2: =V2+1 -> 2009-02-08 | Y2: =TEXT(X2,"(aaa)") -> (Sun) | Z2: =X2+1 -> 2009-02-09 | AA2: =TEXT(Z2,"(aaa)") -> (Mon) | AB2: =Z2+1 -> 2009-02-10 | AC2: =TEXT(AB2,"(aaa)") -> (Tue) | AD2: =AB2+1 -> 2009-02-11 | AE2: =TEXT(AD2,"(aaa)") -> (Wed) | AF2: =AD2+1 -> 2009-02-12 | AG2: =TEXT(AF2,"(aaa)") -> (Thu) | AH2: =AF2+1 -> 2009-02-13 | AI2: =TEXT(AH2,"(aaa)") -> (Fri) | AJ2: =AH2+1 -> 2009-02-14 | AK2: =TEXT(AJ2,"(aaa)") -> (Sat) | AL2: =AJ2+1 -> 2009-02-15 | AM2: =TEXT(AL2,"(aaa)") -> (Sun) | AN2: =AL2+1 -> 2009-02-16 | AO2: =TEXT(AN2,"(aaa)") -> (Mon) | AP2: =AN2+1 -> 2009-02-17 | AQ2: =TEXT(AP2,"(aaa)") -> (Tue) | AR2: =AP2+1 -> 2009-02-18 | AS2: =TEXT(AR2,"(aaa)") -> (Wed) | AT2: =AR2+1 -> 2009-02-19 | AU2: =TEXT(AT2,"(aaa)") -> (Thu) | AV2: =AT2+1 -> 2009-02-20 | AW2: =TEXT(AV2,"(aaa)") -> (Fri) | AX2: =AV2+1 -> 2009-02-21 | AY2: =TEXT(AX2,"(aaa)") -> (Sat) | AZ2: =AX2+1 -> 2009-02-22 | BA2: =TEXT(AZ2,"(aaa)") -> (Sun) | BB2: =AZ2+1 -> 2009-02-23 | BC2: =TEXT(BB2,"(aaa)") -> (Mon) | BD2: =BB2+1 -> 2009-02-24 | BE2: =TEXT(BD2,"(aaa)") -> (Tue) | BF2: =BD2+1 -> 2009-02-25 | BG2: =TEXT(BF2,"(aaa)") -> (Wed) | BH2: =BF2+1 -> 2009-02-26 | BI2: =TEXT(BH2,"(aaa)") -> (Thu) | BJ2: =BH2+1 -> 2009-02-27 | BK2: =TEXT(BJ2,"(aaa)") -> (Fri) | BL2: =BJ2+1 -> 2009-02-28 | BM2: =TEXT(BL2,"(aaa)") -> (Sat) | BN2: =IF((DATE(B2,3,1)-1)=DATE(B2,2,29),"29"," ") ->  | BO2: =TEXT(BN2,"(aaa)") -> 
J3: 品名 | K3: 金額 | L3: 品名 | M3: 金額 | N3: 品名 | O3: 金額 | P3: 品名 | Q3: 金額 | R3: 品名 | S3: 金額 | T3: 品名 | U3: 金額 | V3: 品名 | W3: 金額 | X3: 品名 | Y3: 金額 | Z3: 品名 | AA3: 金額 | AB3: 品名 | AC3: 金額 | AD3: 品名 | AE3: 金額 | AF3: 品名 | AG3: 金額 | AH3: 品名 | AI3: 金額 | AJ3: 品名 | AK3: 金額 | AL3: 品名 | AM3: 金額 | AN3: 品名 | AO3: 金額 | AP3: 品名 | AQ3: 金額 | AR3: 品名 | AS3: 金額 | AT3: 品名 | AU3: 金額 | AV3: 品名 | AW3: 金額 | AX3: 品名 | AY3: 金額 | AZ3: 品名 | BA3: 金額 | BB3: 品名 | BC3: 金額 | BD3: 品名 | BE3: 金額 | BF3: 品名 | BG3: 金額 | BH3: 品名 | BI3: 金額 | BJ3: 品名 | BK3: 金額 | BL3: 品名 | BM3: 金額 | BN3: 品名 | BO3: 金額
B4: 今月の収入 | F4: 今月の生活費 | I4: 主食 | J4: 米５Ｋｇ | K4: 2,600
B5: 項目 | C5: 金額 | D5: 入金日 | F5: 項目 | G5: 購入金額 | J5: 食パン | K5: 160
B6: 給料（手取り） | C6: 300,000 | F6: 食費合計 | G6: =SUM(J19:BO19) -> 6,951
F7: 日用雑貨合計 | G7: =SUM(J20:BO25) -> 398 | I7: 副食 | J7: 卵６個 | K7: 168 | L7: 鳥ムネ肉 | M7: 552
F8: 教育・教養費 | G8: =SUM(J26:BO27) -> 1200 | J8: キャベツ | K8: 200 | L8: 長ネギ３本 | M8: 250
B9: ボーナス | F9: 上記以外合計 | G9: =SUM(J28:BO39) -> 3500 | J9: ブロッコリー | K9: 250 | L9: ツナ缶+3 | M9: 346
B10: 収入合計 | C10: =SUM(C6:C9) -> ¥300,000 | F10: 生活費合計 | G10: =SUM(G6:G9) -> ¥12,049 | L10: りんご２個 | M10: 300
B13: 今月の固定支出
F14: 今月の残金
B15: 項目 | C15: 金額 | D15: 支払日 | I15: 嗜好品 | J15: ビール６本 | K15: 1,980 | L15: ポテトチップ | M15: 145
B16: 電気代 | C16: 4,500 | F16: =C10-C37-G10+SUM(J41:BO41) -> ¥116,231
B17: ガス代 | C17: 3,800
B18: 水道代 | C18: 1,040 | F18: 累計残金 | I18: 外食
B19: 電話代 | C19: 4,000 | I19: 食費合計 | K19: =SUM(K4:K18) -> ¥5,358 | M19: =SUM(M4:M18) -> ¥1,593 | O19: =SUM(O4:O18) -> ¥0 | Q19: =SUM(Q4:Q18) -> ¥0 | S19: =SUM(S4:S18) -> ¥0 | U19: =SUM(U4:U18) -> ¥0 | W19: =SUM(W4:W18) -> ¥0 | Y19: =SUM(Y4:Y18) -> ¥0 | AA19: =SUM(AA4:AA18) -> ¥0 | AC19: =SUM(AC4:AC18) -> ¥0 | AE19: =SUM(AE4:AE18) -> ¥0 | AG19: =SUM(AG4:AG18) -> ¥0 | AI19: =SUM(AI4:AI18) -> ¥0 | AK19: =SUM(AK4:AK18) -> ¥0 | AM19: =SUM(AM4:AM18) -> ¥0 | AO19: =SUM(AO4:AO18) -> ¥0 | AQ19: =SUM(AQ4:AQ18) -> ¥0 | AS19: =SUM(AS4:AS18) -> ¥0 | AU19: =SUM(AU4:AU18) -> ¥0 | AW19: =SUM(AW4:AW18) -> ¥0 | AY19: =SUM(AY4:AY18) -> ¥0 | BA19: =SUM(BA4:BA18) -> ¥0 | BC19: =SUM(BC4:BC18) -> ¥0 | BE19: =SUM(BE4:BE18) -> ¥0 | BG19: =SUM(BG4:BG18) -> ¥0 | BI19: =SUM(BI4:BI18) -> ¥0 | BK19: =SUM(BK4:BK18) -> ¥0 | BM19: =SUM(BM4:BM18) -> ¥0 | BO19: =SUM(BO4:BO18) -> ¥0
B20: 携帯電話代 | C20: 8,600 | F20: =F16 -> ¥116,231 | I20: 日用雑貨 | J20: T・ペーパー | K20: 398
B21: 新聞代 | C21: 2,980
B22: 受信料 | C22: 2,500 | F22: 今月のひとこと
B23: 住居費 | C23: 114,000
B24: インターネット代 | C24: 1,800
B25: 保険 | C25: 10,000
B26: 定期預金 | C26: 20,000 | I26: 教育・教養費 | L26: 書籍 | M26: 1,200
B27: ローン
B28: クレジット | I28: 衣料費
B29: 税金
B30: こづかい | I30: 医療費
B31: 貯金 | I31: 美容費 | L31: カット | M31: 3,500
I32: 交通費
I33: レジャー費
I34: 慶弔・交際費
I35: その他
B37: 固定支出合計 | C37: =SUM(C16:C36) -> ¥173,220
I40: 支出合計 | K40: =SUM(K19:K39) -> ¥5,756 | M40: =SUM(M19:M39) -> ¥6,293 | O40: =SUM(O19:O39) -> ¥0 | Q40: =SUM(Q19:Q39) -> ¥0 | S40: =SUM(S19:S39) -> ¥0 | U40: =SUM(U19:U39) -> ¥0 | W40: =SUM(W19:W39) -> ¥0 | Y40: =SUM(Y19:Y39) -> ¥0 | AA40: =SUM(AA19:AA39) -> ¥0 | AC40: =SUM(AC19:AC39) -> ¥0 | AE40: =SUM(AE19:AE39) -> ¥0 | AG40: =SUM(AG19:AG39) -> ¥0 | AI40: =SUM(AI19:AI39) -> ¥0 | AK40: =SUM(AK19:AK39) -> ¥0 | AM40: =SUM(AM19:AM39) -> ¥0 | AO40: =SUM(AO19:AO39) -> ¥0 | AQ40: =SUM(AQ19:AQ39) -> ¥0 | AS40: =SUM(AS19:AS39) -> ¥0 | AU40: =SUM(AU19:AU39) -> ¥0 | AW40: =SUM(AW19:AW39) -> ¥0 | AY40: =SUM(AY19:AY39) -> ¥0 | BA40: =SUM(BA19:BA39) -> ¥0 | BC40: =SUM(BC19:BC39) -> ¥0 | BE40: =SUM(BE19:BE39) -> ¥0 | BG40: =SUM(BG19:BG39) -> ¥0 | BI40: =SUM(BI19:BI39) -> ¥0 | BK40: =SUM(BK19:BK39) -> ¥0 | BM40: =SUM(BM19:BM39) -> ¥0 | BO40: =SUM(BO19:BO39) -> ¥0
I41: 臨時収入 | M41: ¥1,500
I42: 差引残高 | K42: =C10-C37-K40+K41 -> ¥121,024 | M42: =K42-M40+M41 -> ¥116,231 | O42: =M42-O40+O41 -> ¥116,231 | Q42: =O42-Q40+Q41 -> ¥116,231 | S42: =Q42-S40+S41 -> ¥116,231 | U42: =S42-U40+U41 -> ¥116,231 | W42: =U42-W40+W41 -> ¥116,231 | Y42: =W42-Y40+Y41 -> ¥116,231 | AA42: =Y42-AA40+AA41 -> ¥116,231 | AC42: =AA42-AC40+AC41 -> ¥116,231 | AE42: =AC42-AE40+AE41 -> ¥116,231 | AG42: =AE42-AG40+AG41 -> ¥116,231 | AI42: =AG42-AI40+AI41 -> ¥116,231 | AK42: =AI42-AK40+AK41 -> ¥116,231 | AM42: =AK42-AM40+AM41 -> ¥116,231 | AO42: =AM42-AO40+AO41 -> ¥116,231 | AQ42: =AO42-AQ40+AQ41 -> ¥116,231 | AS42: =AQ42-AS40+AS41 -> ¥116,231 | AU42: =AS42-AU40+AU41 -> ¥116,231 | AW42: =AU42-AW40+AW41 -> ¥116,231 | AY42: =AW42-AY40+AY41 -> ¥116,231 | BA42: =AY42-BA40+BA41 -> ¥116,231 | BC42: =BA42-BC40+BC41 -> ¥116,231 | BE42: =BC42-BE40+BE41 -> ¥116,231 | BG42: =BE42-BG40+BG41 -> ¥116,231 | BI42: =BG42-BI40+BI41 -> ¥116,231 | BK42: =BI42-BK40+BK41 -> ¥116,231 | BM42: =BK42-BM40+BM41 -> ¥116,231 | BO42: =BM42-BO40+BO41 -> ¥116,231

Sheet 3月
B2: ='1月'!B2 -> 2009 | C2: 年 | D2: =DATE(B2,3,1) -> 2009-03-01 | E2: 月の家計簿 | I2: 毎日の記録 | J2: =DATE(B2,3,1) -> 2009-03-01 | K2: =TEXT(J2,"(aaa)") -> (Sun) | L2: =J2+1 -> 2009-03-02 | M2: =TEXT(L2,"(aaa)") -> (Mon) | N2: =L2+1 -> 2009-03-03 | O2: =TEXT(N2,"(aaa)") -> (Tue) | P2: =N2+1 -> 2009-03-04 | Q2: =TEXT(P2,"(aaa)") -> (Wed) | R2: =P2+1 -> 2009-03-05 | S2: =TEXT(R2,"(aaa)") -> (Thu) | T2: =R2+1 -> 2009-03-06 | U2: =TEXT(T2,"(aaa)") -> (Fri) | V2: =T2+1 -> 2009-03-07 | W2: =TEXT(V2,"(aaa)") -> (Sat) | X2: =V2+1 -> 2009-03-08 | Y2: =TEXT(X2,"(aaa)") -> (Sun) | Z2: =X2+1 -> 2009-03-09 | AA2: =TEXT(Z2,"(aaa)") -> (Mon) | AB2: =Z2+1 -> 2009-03-10 | AC2: =TEXT(AB2,"(aaa)") -> (Tue) | AD2: =AB2+1 -> 2009-03-11 | AE2: =TEXT(AD2,"(aaa)") -> (Wed) | AF2: =AD2+1 -> 2009-03-12 | AG2: =TEXT(AF2,"(aaa)") -> (Thu) | AH2: =AF2+1 -> 2009-03-13 | AI2: =TEXT(AH2,"(aaa)") -> (Fri) | AJ2: =AH2+1 -> 2009-03-14 | AK2: =TEXT(AJ2,"(aaa)") -> (Sat) | AL2: =AJ2+1 -> 2009-03-15 | AM2: =TEXT(AL2,"(aaa)") -> (Sun) | AN2: =AL2+1 -> 2009-03-16 | AO2: =TEXT(AN2,"(aaa)") -> (Mon) | AP2: =AN2+1 -> 2009-03-17 | AQ2: =TEXT(AP2,"(aaa)") -> (Tue) | AR2: =AP2+1 -> 2009-03-18 | AS2: =TEXT(AR2,"(aaa)") -> (Wed) | AT2: =AR2+1 -> 2009-03-19 | AU2: =TEXT(AT2,"(aaa)") -> (Thu) | AV2: =AT2+1 -> 2009-03-20 | AW2: =TEXT(AV2,"(aaa)") -> (Fri) | AX2: =AV2+1 -> 2009-03-21 | AY2: =TEXT(AX2,"(aaa)") -> (Sat) | AZ2: =AX2+1 -> 2009-03-22 | BA2: =TEXT(AZ2,"(aaa)") -> (Sun) | BB2: =AZ2+1 -> 2009-03-23 | BC2: =TEXT(BB2,"(aaa)") -> (Mon) | BD2: =BB2+1 -> 2009-03-24 | BE2: =TEXT(BD2,"(aaa)") -> (Tue) | BF2: =BD2+1 -> 2009-03-25 | BG2: =TEXT(BF2,"(aaa)") -> (Wed) | BH2: =BF2+1 -> 2009-03-26 | BI2: =TEXT(BH2,"(aaa)") -> (Thu) | BJ2: =BH2+1 -> 2009-03-27 | BK2: =TEXT(BJ2,"(aaa)") -> (Fri) | BL2: =BJ2+1 -> 2009-03-28 | BM2: =TEXT(BL2,"(aaa)") -> (Sat) | BN2: =BL2+1 -> 2009-03-29 | BO2: =TEXT(BN2,"(aaa)") -> (Sun) | BP2: =BN2+1 -> 2009-03-30 | BQ2: =TEXT(BP2,"(aaa)") -> (Mon) | BR2: =BP2+1 -> 2009-03-31 | BS2: =TEXT(BR2,"(aaa)") -> (Tue)
J3: 品名 | K3: 金額 | L3: 品名 | M3: 金額 | N3: 品名 | O3: 金額 | P3: 品名 | Q3: 金額 | R3: 品名 | S3: 金額 | T3: 品名 | U3: 金額 | V3: 品名 | W3: 金額 | X3: 品名 | Y3: 金額 | Z3: 品名 | AA3: 金額 | AB3: 品名 | AC3: 金額 | AD3: 品名 | AE3: 金額 | AF3: 品名 | AG3: 金額 | AH3: 品名 | AI3: 金額 | AJ3: 品名 | AK3: 金額 | AL3: 品名 | AM3: 金額 | AN3: 品名 | AO3: 金額 | AP3: 品名 | AQ3: 金額 | AR3: 品名 | AS3: 金額 | AT3: 品名 | AU3: 金額 | AV3: 品名 | AW3: 金額 | AX3: 品名 | AY3: 金額 | AZ3: 品名 | BA3: 金額 | BB3: 品名 | BC3: 金額 | BD3: 品名 | BE3: 金額 | BF3: 品名 | BG3: 金額 | BH3: 品名 | BI3: 金額 | BJ3: 品名 | BK3: 金額 | BL3: 品名 | BM3: 金額 | BN3: 品名 | BO3: 金額 | BP3: 品名 | BQ3: 金額 | BR3: 品名 | BS3: 金額
B4: 今月の収入 | F4: 今月の生活費 | I4: 主食 | J4: 米５Ｋｇ | K4: 2,600
B5: 項目 | C5: 金額 | D5: 入金日 | F5: 項目 | G5: 購入金額 | J5: 食パン | K5: 160
B6: 給料（手取り） | C6: 300,000 | F6: 食費合計 | G6: =SUM(J19:BS19) -> 6,951
F7: 日用雑貨合計 | G7: =SUM(J20:BS25) -> 398 | I7: 副食 | J7: 卵６個 | K7: 168 | L7: 鳥ムネ肉 | M7: 552
F8: 教育・教養費 | G8: =SUM(J26:BS27) -> 1200 | J8: キャベツ | K8: 200 | L8: 長ネギ３本 | M8: 250
B9: ボーナス | F9: 上記以外合計 | G9: =SUM(J28:BS39) -> 3500 | J9: ブロッコリー | K9: 250 | L9: ツナ缶+3 | M9: 346
B10: 収入合計 | C10: =SUM(C6:C9) -> ¥300,000 | F10: 生活費合計 | G10: =SUM(G6:G9) -> ¥12,049 | L10: りんご２個 | M10: 300
B13: 今月の固定支出
F14: 今月の残金
B15: 項目 | C15: 金額 | D15: 支払日 | I15: 嗜好品 | J15: ビール６本 | K15: 1,980 | L15: ポテトチップ | M15: 145
B16: 電気代 | C16: 4,500 | F16: =C10-C37-G10+SUM(J41:BS41) -> ¥116,231
B17: ガス代 | C17: 3,800
B18: 水道代 | C18: 1,040 | F18: 累計残金 | I18: 外食
B19: 電話代 | C19: 4,000 | I19: 食費合計 | K19: =SUM(K4:K18) -> ¥5,358 | M19: =SUM(M4:M18) -> ¥1,593 | O19: =SUM(O4:O18) -> ¥0 | Q19: =SUM(Q4:Q18) -> ¥0 | S19: =SUM(S4:S18) -> ¥0 | U19: =SUM(U4:U18) -> ¥0 | W19: =SUM(W4:W18) -> ¥0 | Y19: =SUM(Y4:Y18) -> ¥0 | AA19: =SUM(AA4:AA18) -> ¥0 | AC19: =SUM(AC4:AC18) -> ¥0 | AE19: =SUM(AE4:AE18) -> ¥0 | AG19: =SUM(AG4:AG18) -> ¥0 | AI19: =SUM(AI4:AI18) -> ¥0 | AK19: =SUM(AK4:AK18) -> ¥0 | AM19: =SUM(AM4:AM18) -> ¥0 | AO19: =SUM(AO4:AO18) -> ¥0 | AQ19: =SUM(AQ4:AQ18) -> ¥0 | AS19: =SUM(AS4:AS18) -> ¥0 | AU19: =SUM(AU4:AU18) -> ¥0 | AW19: =SUM(AW4:AW18) -> ¥0 | AY19: =SUM(AY4:AY18) -> ¥0 | BA19: =SUM(BA4:BA18) -> ¥0 | BC19: =SUM(BC4:BC18) -> ¥0 | BE19: =SUM(BE4:BE18) -> ¥0 | BG19: =SUM(BG4:BG18) -> ¥0 | BI19: =SUM(BI4:BI18) -> ¥0 | BK19: =SUM(BK4:BK18) -> ¥0 | BM19: =SUM(BM4:BM18) -> ¥0 | BO19: =SUM(BO4:BO18) -> ¥0 | BQ19: =SUM(BQ4:BQ18) -> ¥0 | BS19: =SUM(BS4:BS18) -> ¥0
B20: 携帯電話代 | C20: 8,600 | F20: =F16 -> ¥116,231 | I20: 日用雑貨 | J20: T・ペーパー | K20: 398
B21: 新聞代 | C21: 2,980
B22: 受信料 | C22: 2,500 | F22: 今月のひとこと
B23: 住居費 | C23: 114,000
B24: インターネット代 | C24: 1,800
B25: 保険 | C25: 10,000
B26: 定期預金 | C26: 20,000 | I26: 教育・教養費 | L26: 書籍 | M26: 1,200
B27: ローン
B28: クレジット | I28: 衣料費
B29: 税金
B30: こづかい | I30: 医療費
B31: 貯金 | I31: 美容費 | L31: カット | M31: 3,500
I32: 交通費
I33: レジャー費
I34: 慶弔・交際費
I35: その他
B37: 固定支出合計 | C37: =SUM(C16:C36) -> ¥173,220
I40: 支出合計 | K40: =SUM(K19:K39) -> ¥5,756 | M40: =SUM(M19:M39) -> ¥6,293 | O40: =SUM(O19:O39) -> ¥0 | Q40: =SUM(Q19:Q39) -> ¥0 | S40: =SUM(S19:S39) -> ¥0 | U40: =SUM(U19:U39) -> ¥0 | W40: =SUM(W19:W39) -> ¥0 | Y40: =SUM(Y19:Y39) -> ¥0 | AA40: =SUM(AA19:AA39) -> ¥0 | AC40: =SUM(AC19:AC39) -> ¥0 | AE40: =SUM(AE19:AE39) -> ¥0 | AG40: =SUM(AG19:AG39) -> ¥0 | AI40: =SUM(AI19:AI39) -> ¥0 | AK40: =SUM(AK19:AK39) -> ¥0 | AM40: =SUM(AM19:AM39) -> ¥0 | AO40: =SUM(AO19:AO39) -> ¥0 | AQ40: =SUM(AQ19:AQ39) -> ¥0 | AS40: =SUM(AS19:AS39) -> ¥0 | AU40: =SUM(AU19:AU39) -> ¥0 | AW40: =SUM(AW19:AW39) -> ¥0 | AY40: =SUM(AY19:AY39) -> ¥0 | BA40: =SUM(BA19:BA39) -> ¥0 | BC40: =SUM(BC19:BC39) -> ¥0 | BE40: =SUM(BE19:BE39) -> ¥0 | BG40: =SUM(BG19:BG39) -> ¥0 | BI40: =SUM(BI19:BI39) -> ¥0 | BK40: =SUM(BK19:BK39) -> ¥0 | BM40: =SUM(BM19:BM39) -> ¥0 | BO40: =SUM(BO19:BO39) -> ¥0 | BQ40: =SUM(BQ19:BQ39) -> ¥0 | BS40: =SUM(BS19:BS39) -> ¥0
I41: 臨時収入 | M41: ¥1,500
I42: 差引残高 | K42: =C10-C37-K40+K41 -> ¥121,024 | M42: =K42-M40+M41 -> ¥116,231 | O42: =M42-O40+O41 -> ¥116,231 | Q42: =O42-Q40+Q41 -> ¥116,231 | S42: =Q42-S40+S41 -> ¥116,231 | U42: =S42-U40+U41 -> ¥116,231 | W42: =U42-W40+W41 -> ¥116,231 | Y42: =W42-Y40+Y41 -> ¥116,231 | AA42: =Y42-AA40+AA41 -> ¥116,231 | AC42: =AA42-AC40+AC41 -> ¥116,231 | AE42: =AC42-AE40+AE41 -> ¥116,231 | AG42: =AE42-AG40+AG41 -> ¥116,231 | AI42: =AG42-AI40+AI41 -> ¥116,231 | AK42: =AI42-AK40+AK41 -> ¥116,231 | AM42: =AK42-AM40+AM41 -> ¥116,231 | AO42: =AM42-AO40+AO41 -> ¥116,231 | AQ42: =AO42-AQ40+AQ41 -> ¥116,231 | AS42: =AQ42-AS40+AS41 -> ¥116,231 | AU42: =AS42-AU40+AU41 -> ¥116,231 | AW42: =AU42-AW40+AW41 -> ¥116,231 | AY42: =AW42-AY40+AY41 -> ¥116,231 | BA42: =AY42-BA40+BA41 -> ¥116,231 | BC42: =BA42-BC40+BC41 -> ¥116,231 | BE42: =BC42-BE40+BE41 -> ¥116,231 | BG42: =BE42-BG40+BG41 -> ¥116,231 | BI42: =BG42-BI40+BI41 -> ¥116,231 | BK42: =BI42-BK40+BK41 -> ¥116,231 | BM42: =BK42-BM40+BM41 -> ¥116,231 | BO42: =BM42-BO40+BO41 -> ¥116,231 | BQ42: =BO42-BQ40+BQ41 -> ¥116,231 | BS42: =BQ42-BS40+BS41 -> ¥116,231

Sheet 4月
B2: ='1月'!B2 -> 2009 | C2: 年 | D2: =DATE(B2,4,1) -> 2009-04-01 | E2: 月の家計簿 | I2: 毎日の記録 | J2: =DATE(B2,4,1) -> 2009-04-01 | K2: =TEXT(J2,"(aaa)") -> (Wed) | L2: =J2+1 -> 2009-04-02 | M2: =TEXT(L2,"(aaa)") -> (Thu) | N2: =L2+1 -> 2009-04-03 | O2: =TEXT(N2,"(aaa)") -> (Fri) | P2: =N2+1 -> 2009-04-04 | Q2: =TEXT(P2,"(aaa)") -> (Sat) | R2: =P2+1 -> 2009-04-05 | S2: =TEXT(R2,"(aaa)") -> (Sun) | T2: =R2+1 -> 2009-04-06 | U2: =TEXT(T2,"(aaa)") -> (Mon) | V2: =T2+1 -> 2009-04-07 | W2: =TEXT(V2,"(aaa)") -> (Tue) | X2: =V2+1 -> 2009-04-08 | Y2: =TEXT(X2,"(aaa)") -> (Wed) | Z2: =X2+1 -> 2009-04-09 | AA2: =TEXT(Z2,"(aaa)") -> (Thu) | AB2: =Z2+1 -> 2009-04-10 | AC2: =TEXT(AB2,"(aaa)") -> (Fri) | AD2: =AB2+1 -> 2009-04-11 | AE2: =TEXT(AD2,"(aaa)") -> (Sat) | AF2: =AD2+1 -> 2009-04-12 | AG2: =TEXT(AF2,"(aaa)") -> (Sun) | AH2: =AF2+1 -> 2009-04-13 | AI2: =TEXT(AH2,"(aaa)") -> (Mon) | AJ2: =AH2+1 -> 2009-04-14 | AK2: =TEXT(AJ2,"(aaa)") -> (Tue) | AL2: =AJ2+1 -> 2009-04-15 | AM2: =TEXT(AL2,"(aaa)") -> (Wed) | AN2: =AL2+1 -> 2009-04-16 | AO2: =TEXT(AN2,"(aaa)") -> (Thu) | AP2: =AN2+1 -> 2009-04-17 | AQ2: =TEXT(AP2,"(aaa)") -> (Fri) | AR2: =AP2+1 -> 2009-04-18 | AS2: =TEXT(AR2,"(aaa)") -> (Sat) | AT2: =AR2+1 -> 2009-04-19 | AU2: =TEXT(AT2,"(aaa)") -> (Sun) | AV2: =AT2+1 -> 2009-04-20 | AW2: =TEXT(AV2,"(aaa)") -> (Mon) | AX2: =AV2+1 -> 2009-04-21 | AY2: =TEXT(AX2,"(aaa)") -> (Tue) | AZ2: =AX2+1 -> 2009-04-22 | BA2: =TEXT(AZ2,"(aaa)") -> (Wed) | BB2: =AZ2+1 -> 2009-04-23 | BC2: =TEXT(BB2,"(aaa)") -> (Thu) | BD2: =BB2+1 -> 2009-04-24 | BE2: =TEXT(BD2,"(aaa)") -> (Fri) | BF2: =BD2+1 -> 2009-04-25 | BG2: =TEXT(BF2,"(aaa)") -> (Sat) | BH2: =BF2+1 -> 2009-04-26 | BI2: =TEXT(BH2,"(aaa)") -> (Sun) | BJ2: =BH2+1 -> 2009-04-27 | BK2: =TEXT(BJ2,"(aaa)") -> (Mon) | BL2: =BJ2+1 -> 2009-04-28 | BM2: =TEXT(BL2,"(aaa)") -> (Tue) | BN2: =BL2+1 -> 2009-04-29 | BO2: =TEXT(BN2,"(aaa)") -> (Wed) | BP2: =BN2+1 -> 2009-04-30 | BQ2: =TEXT(BP2,"(aaa)") -> (Thu)
J3: 品名 | K3: 金額 | L3: 品名 | M3: 金額 | N3: 品名 | O3: 金額 | P3: 品名 | Q3: 金額 | R3: 品名 | S3: 金額 | T3: 品名 | U3: 金額 | V3: 品名 | W3: 金額 | X3: 品名 | Y3: 金額 | Z3: 品名 | AA3: 金額 | AB3: 品名 | AC3: 金額 | AD3: 品名 | AE3: 金額 | AF3: 品名 | AG3: 金額 | AH3: 品名 | AI3: 金額 | AJ3: 品名 | AK3: 金額 | AL3: 品名 | AM3: 金額 | AN3: 品名 | AO3: 金額 | AP3: 品名 | AQ3: 金額 | AR3: 品名 | AS3: 金額 | AT3: 品名 | AU3: 金額 | AV3: 品名 | AW3: 金額 | AX3: 品名 | AY3: 金額 | AZ3: 品名 | BA3: 金額 | BB3: 品名 | BC3: 金額 | BD3: 品名 | BE3: 金額 | BF3: 品名 | BG3: 金額 | BH3: 品名 | BI3: 金額 | BJ3: 品名 | BK3: 金額 | BL3: 品名 | BM3: 金額 | BN3: 品名 | BO3: 金額 | BP3: 品名 | BQ3: 金額
B4: 今月の収入 | F4: 今月の生活費 | I4: 主食 | J4: 米５Ｋｇ | K4: 2,600
B5: 項目 | C5: 金額 | D5: 入金日 | F5: 項目 | G5: 購入金額 | J5: 食パン | K5: 160
B6: 給料（手取り） | C6: 300,000 | F6: 食費合計 | G6: =SUM(J19:BQ19) -> 6,951
F7: 日用雑貨合計 | G7: =SUM(J20:BQ25) -> 398 | I7: 副食 | J7: 卵６個 | K7: 168 | L7: 鳥ムネ肉 | M7: 552
F8: 教育・教養費 | G8: =SUM(J26:BQ27) -> 1200 | J8: キャベツ | K8: 200 | L8: 長ネギ３本 | M8: 250
B9: ボーナス | F9: 上記以外合計 | G9: =SUM(J28:BQ39) -> 3500 | J9: ブロッコリー | K9: 250 | L9: ツナ缶+3 | M9: 346
B10: 収入合計 | C10: =SUM(C6:C9) -> ¥300,000 | F10: 生活費合計 | G10: =SUM(G6:G9) -> ¥12,049 | L10: りんご２個 | M10: 300
B13: 今月の固定支出
F14: 今月の残金
B15: 項目 | C15: 金額 | D15: 支払日 | I15: 嗜好品 | J15: ビール６本 | K15: 1,980 | L15: ポテトチップ | M15: 145
B16: 電気代 | C16: 4,500 | F16: =C10-C37-G10+SUM(J41:BQ41) -> ¥116,231
B17: ガス代 | C17: 3,800
B18: 水道代 | C18: 1,040 | F18: 累計残金 | I18: 外食
B19: 電話代 | C19: 4,000 | I19: 食費合計 | K19: =SUM(K4:K18) -> ¥5,358 | M19: =SUM(M4:M18) -> ¥1,593 | O19: =SUM(O4:O18) -> ¥0 | Q19: =SUM(Q4:Q18) -> ¥0 | S19: =SUM(S4:S18) -> ¥0 | U19: =SUM(U4:U18) -> ¥0 | W19: =SUM(W4:W18) -> ¥0 | Y19: =SUM(Y4:Y18) -> ¥0 | AA19: =SUM(AA4:AA18) -> ¥0 | AC19: =SUM(AC4:AC18) -> ¥0 | AE19: =SUM(AE4:AE18) -> ¥0 | AG19: =SUM(AG4:AG18) -> ¥0 | AI19: =SUM(AI4:AI18) -> ¥0 | AK19: =SUM(AK4:AK18) -> ¥0 | AM19: =SUM(AM4:AM18) -> ¥0 | AO19: =SUM(AO4:AO18) -> ¥0 | AQ19: =SUM(AQ4:AQ18) -> ¥0 | AS19: =SUM(AS4:AS18) -> ¥0 | AU19: =SUM(AU4:AU18) -> ¥0 | AW19: =SUM(AW4:AW18) -> ¥0 | AY19: =SUM(AY4:AY18) -> ¥0 | BA19: =SUM(BA4:BA18) -> ¥0 | BC19: =SUM(BC4:BC18) -> ¥0 | BE19: =SUM(BE4:BE18) -> ¥0 | BG19: =SUM(BG4:BG18) -> ¥0 | BI19: =SUM(BI4:BI18) -> ¥0 | BK19: =SUM(BK4:BK18) -> ¥0 | BM19: =SUM(BM4:BM18) -> ¥0 | BO19: =SUM(BO4:BO18) -> ¥0 | BQ19: =SUM(BQ4:BQ18) -> ¥0
B20: 携帯電話代 | C20: 8,600 | F20: =F16 -> ¥116,231 | I20: 日用雑貨 | J20: T・ペーパー | K20: 398
B21: 新聞代 | C21: 2,980
B22: 受信料 | C22: 2,500 | F22: 今月のひとこと
B23: 住居費 | C23: 114,000
B24: インターネット代 | C24: 1,800
B25: 保険 | C25: 10,000
B26: 定期預金 | C26: 20,000 | I26: 教育・教養費 | L26: 書籍 | M26: 1,200
B27: ローン
B28: クレジット | I28: 衣料費
B29: 税金
B30: こづかい | I30: 医療費
B31: 貯金 | I31: 美容費 | L31: カット | M31: 3,500
I32: 交通費
I33: レジャー費
I34: 慶弔・交際費
I35: その他
B37: 固定支出合計 | C37: =SUM(C16:C36) -> ¥173,220
I40: 支出合計 | K40: =SUM(K19:K39) -> ¥5,756 | M40: =SUM(M19:M39) -> ¥6,293 | O40: =SUM(O19:O39) -> ¥0 | Q40: =SUM(Q19:Q39) -> ¥0 | S40: =SUM(S19:S39) -> ¥0 | U40: =SUM(U19:U39) -> ¥0 | W40: =SUM(W19:W39) -> ¥0 | Y40: =SUM(Y19:Y39) -> ¥0 | AA40: =SUM(AA19:AA39) -> ¥0 | AC40: =SUM(AC19:AC39) -> ¥0 | AE40: =SUM(AE19:AE39) -> ¥0 | AG40: =SUM(AG19:AG39) -> ¥0 | AI40: =SUM(AI19:AI39) -> ¥0 | AK40: =SUM(AK19:AK39) -> ¥0 | AM40: =SUM(AM19:AM39) -> ¥0 | AO40: =SUM(AO19:AO39) -> ¥0 | AQ40: =SUM(AQ19:AQ39) -> ¥0 | AS40: =SUM(AS19:AS39) -> ¥0 | AU40: =SUM(AU19:AU39) -> ¥0 | AW40: =SUM(AW19:AW39) -> ¥0 | AY40: =SUM(AY19:AY39) -> ¥0 | BA40: =SUM(BA19:BA39) -> ¥0 | BC40: =SUM(BC19:BC39) -> ¥0 | BE40: =SUM(BE19:BE39) -> ¥0 | BG40: =SUM(BG19:BG39) -> ¥0 | BI40: =SUM(BI19:BI39) -> ¥0 | BK40: =SUM(BK19:BK39) -> ¥0 | BM40: =SUM(BM19:BM39) -> ¥0 | BO40: =SUM(BO19:BO39) -> ¥0 | BQ40: =SUM(BQ19:BQ39) -> ¥0
I41: 臨時収入 | M41: ¥1,500
I42: 差引残高 | K42: =C10-C37-K40+K41 -> ¥121,024 | M42: =K42-M40+M41 -> ¥116,231 | O42: =M42-O40+O41 -> ¥116,231 | Q42: =O42-Q40+Q41 -> ¥116,231 | S42: =Q42-S40+S41 -> ¥116,231 | U42: =S42-U40+U41 -> ¥116,231 | W42: =U42-W40+W41 -> ¥116,231 | Y42: =W42-Y40+Y41 -> ¥116,231 | AA42: =Y42-AA40+AA41 -> ¥116,231 | AC42: =AA42-AC40+AC41 -> ¥116,231 | AE42: =AC42-AE40+AE41 -> ¥116,231 | AG42: =AE42-AG40+AG41 -> ¥116,231 | AI42: =AG42-AI40+AI41 -> ¥116,231 | AK42: =AI42-AK40+AK41 -> ¥116,231 | AM42: =AK42-AM40+AM41 -> ¥116,231 | AO42: =AM42-AO40+AO41 -> ¥116,231 | AQ42: =AO42-AQ40+AQ41 -> ¥116,231 | AS42: =AQ42-AS40+AS41 -> ¥116,231 | AU42: =AS42-AU40+AU41 -> ¥116,231 | AW42: =AU42-AW40+AW41 -> ¥116,231 | AY42: =AW42-AY40+AY41 -> ¥116,231 | BA42: =AY42-BA40+BA41 -> ¥116,231 | BC42: =BA42-BC40+BC41 -> ¥116,231 | BE42: =BC42-BE40+BE41 -> ¥116,231 | BG42: =BE42-BG40+BG41 -> ¥116,231 | BI42: =BG42-BI40+BI41 -> ¥116,231 | BK42: =BI42-BK40+BK41 -> ¥116,231 | BM42: =BK42-BM40+BM41 -> ¥116,231 | BO42: =BM42-BO40+BO41 -> ¥116,231 | BQ42: =BO42-BQ40+BQ41 -> ¥116,231

Sheet 5月
B2: ='1月'!B2 -> 2009 | C2: 年 | D2: =DATE(B2,5,1) -> 2009-05-01 | E2: 月の家計簿 | I2: 毎日の記録 | J2: =DATE(B2,5,1) -> 2009-05-01 | K2: =TEXT(J2,"(aaa)") -> (Fri) | L2: =J2+1 -> 2009-05-02 | M2: =TEXT(L2,"(aaa)") -> (Sat) | N2: =L2+1 -> 2009-05-03 | O2: =TEXT(N2,"(aaa)") -> (Sun) | P2: =N2+1 -> 2009-05-04 | Q2: =TEXT(P2,"(aaa)") -> (Mon) | R2: =P2+1 -> 2009-05-05 | S2: =TEXT(R2,"(aaa)") -> (Tue) | T2: =R2+1 -> 2009-05-06 | U2: =TEXT(T2,"(aaa)") -> (Wed) | V2: =T2+1 -> 2009-05-07 | W2: =TEXT(V2,"(aaa)") -> (Thu) | X2: =V2+1 -> 2009-05-08 | Y2: =TEXT(X2,"(aaa)") -> (Fri) | Z2: =X2+1 -> 2009-05-09 | AA2: =TEXT(Z2,"(aaa)") -> (Sat) | AB2: =Z2+1 -> 2009-05-10 | AC2: =TEXT(AB2,"(aaa)") -> (Sun) | AD2: =AB2+1 -> 2009-05-11 | AE2: =TEXT(AD2,"(aaa)") -> (Mon) | AF2: =AD2+1 -> 2009-05-12 | AG2: =TEXT(AF2,"(aaa)") -> (Tue) | AH2: =AF2+1 -> 2009-05-13 | AI2: =TEXT(AH2,"(aaa)") -> (Wed) | AJ2: =AH2+1 -> 2009-05-14 | AK2: =TEXT(AJ2,"(aaa)") -> (Thu) | AL2: =AJ2+1 -> 2009-05-15 | AM2: =TEXT(AL2,"(aaa)") -> (Fri) | AN2: =AL2+1 -> 2009-05-16 | AO2: =TEXT(AN2,"(aaa)") -> (Sat) | AP2: =AN2+1 -> 2009-05-17 | AQ2: =TEXT(AP2,"(aaa)") -> (Sun) | AR2: =AP2+1 -> 2009-05-18 | AS2: =TEXT(AR2,"(aaa)") -> (Mon) | AT2: =AR2+1 -> 2009-05-19 | AU2: =TEXT(AT2,"(aaa)") -> (Tue) | AV2: =AT2+1 -> 2009-05-20 | AW2: =TEXT(AV2,"(aaa)") -> (Wed) | AX2: =AV2+1 -> 2009-05-21 | AY2: =TEXT(AX2,"(aaa)") -> (Thu) | AZ2: =AX2+1 -> 2009-05-22 | BA2: =TEXT(AZ2,"(aaa)") -> (Fri) | BB2: =AZ2+1 -> 2009-05-23 | BC2: =TEXT(BB2,"(aaa)") -> (Sat) | BD2: =BB2+1 -> 2009-05-24 | BE2: =TEXT(BD2,"(aaa)") -> (Sun) | BF2: =BD2+1 -> 2009-05-25 | BG2: =TEXT(BF2,"(aaa)") -> (Mon) | BH2: =BF2+1 -> 2009-05-26 | BI2: =TEXT(BH2,"(aaa)") -> (Tue) | BJ2: =BH2+1 -> 2009-05-27 | BK2: =TEXT(BJ2,"(aaa)") -> (Wed) | BL2: =BJ2+1 -> 2009-05-28 | BM2: =TEXT(BL2,"(aaa)") -> (Thu) | BN2: =BL2+1 -> 2009-05-29 | BO2: =TEXT(BN2,"(aaa)") -> (Fri) | BP2: =BN2+1 -> 2009-05-30 | BQ2: =TEXT(BP2,"(aaa)") -> (Sat) | BR2: =BP2+1 -> 2009-05-31 | BS2: =TEXT(BR2,"(aaa)") -> (Sun)
J3: 品名 | K3: 金額 | L3: 品名 | M3: 金額 | N3: 品名 | O3: 金額 | P3: 品名 | Q3: 金額 | R3: 品名 | S3: 金額 | T3: 品名 | U3: 金額 | V3: 品名 | W3: 金額 | X3: 品名 | Y3: 金額 | Z3: 品名 | AA3: 金額 | AB3: 品名 | AC3: 金額 | AD3: 品名 | AE3: 金額 | AF3: 品名 | AG3: 金額 | AH3: 品名 | AI3: 金額 | AJ3: 品名 | AK3: 金額 | AL3: 品名 | AM3: 金額 | AN3: 品名 | AO3: 金額 | AP3: 品名 | AQ3: 金額 | AR3: 品名 | AS3: 金額 | AT3: 品名 | AU3: 金額 | AV3: 品名 | AW3: 金額 | AX3: 品名 | AY3: 金額 | AZ3: 品名 | BA3: 金額 | BB3: 品名 | BC3: 金額 | BD3: 品名 | BE3: 金額 | BF3: 品名 | BG3: 金額 | BH3: 品名 | BI3: 金額 | BJ3: 品名 | BK3: 金額 | BL3: 品名 | BM3: 金額 | BN3: 品名 | BO3: 金額 | BP3: 品名 | BQ3: 金額 | BR3: 品名 | BS3: 金額
B4: 今月の収入 | F4: 今月の生活費 | I4: 主食 | J4: 米５Ｋｇ | K4: 2,600
B5: 項目 | C5: 金額 | D5: 入金日 | F5: 項目 | G5: 購入金額 | J5: 食パン | K5: 160
B6: 給料（手取り） | C6: 300,000 | F6: 食費合計 | G6: =SUM(J19:BS19) -> 6,951
F7: 日用雑貨合計 | G7: =SUM(J20:BS25) -> 398 | I7: 副食 | J7: 卵６個 | K7: 168 | L7: 鳥ムネ肉 | M7: 552
F8: 教育・教養費 | G8: =SUM(J26:BS27) -> 1200 | J8: キャベツ | K8: 200 | L8: 長ネギ３本 | M8: 250
B9: ボーナス | F9: 上記以外合計 | G9: =SUM(J28:BS39) -> 3500 | J9: ブロッコリー | K9: 250 | L9: ツナ缶+3 | M9: 346
B10: 収入合計 | C10: =SUM(C6:C9) -> ¥300,000 | F10: 生活費合計 | G10: =SUM(G6:G9) -> ¥12,049 | L10: りんご２個 | M10: 300
B13: 今月の固定支出
F14: 今月の残金
B15: 項目 | C15: 金額 | D15: 支払日 | I15: 嗜好品 | J15: ビール６本 | K15: 1,980 | L15: ポテトチップ | M15: 145
B16: 電気代 | C16: 4,500 | F16: =C10-C37-G10+SUM(J41:BS41) -> ¥116,231
B17: ガス代 | C17: 3,800
B18: 水道代 | C18: 1,040 | F18: 累計残金 | I18: 外食
B19: 電話代 | C19: 4,000 | I19: 食費合計 | K19: =SUM(K4:K18) -> ¥5,358 | M19: =SUM(M4:M18) -> ¥1,593 | O19: =SUM(O4:O18) -> ¥0 | Q19: =SUM(Q4:Q18) -> ¥0 | S19: =SUM(S4:S18) -> ¥0 | U19: =SUM(U4:U18) -> ¥0 | W19: =SUM(W4:W18) -> ¥0 | Y19: =SUM(Y4:Y18) -> ¥0 | AA19: =SUM(AA4:AA18) -> ¥0 | AC19: =SUM(AC4:AC18) -> ¥0 | AE19: =SUM(AE4:AE18) -> ¥0 | AG19: =SUM(AG4:AG18) -> ¥0 | AI19: =SUM(AI4:AI18) -> ¥0 | AK19: =SUM(AK4:AK18) -> ¥0 | AM19: =SUM(AM4:AM18) -> ¥0 | AO19: =SUM(AO4:AO18) -> ¥0 | AQ19: =SUM(AQ4:AQ18) -> ¥0 | AS19: =SUM(AS4:AS18) -> ¥0 | AU19: =SUM(AU4:AU18) -> ¥0 | AW19: =SUM(AW4:AW18) -> ¥0 | AY19: =SUM(AY4:AY18) -> ¥0 | BA19: =SUM(BA4:BA18) -> ¥0 | BC19: =SUM(BC4:BC18) -> ¥0 | BE19: =SUM(BE4:BE18) -> ¥0 | BG19: =SUM(BG4:BG18) -> ¥0 | BI19: =SUM(BI4:BI18) -> ¥0 | BK19: =SUM(BK4:BK18) -> ¥0 | BM19: =SUM(BM4:BM18) -> ¥0 | BO19: =SUM(BO4:BO18) -> ¥0 | BQ19: =SUM(BQ4:BQ18) -> ¥0 | BS19: =SUM(BS4:BS18) -> ¥0
B20: 携帯電話代 | C20: 8,600 | F20: =F16 -> ¥116,231 | I20: 日用雑貨 | J20: T・ペーパー | K20: 398
B21: 新聞代 | C21: 2,980
B22: 受信料 | C22: 2,500 | F22: 今月のひとこと
B23: 住居費 | C23: 114,000
B24: インターネット代 | C24: 1,800
B25: 保険 | C25: 10,000
B26: 定期預金 | C26: 20,000 | I26: 教育・教養費 | L26: 書籍 | M26: 1,200
B27: ローン
B28: クレジット | I28: 衣料費
B29: 税金
B30: こづかい | I30: 医療費
B31: 貯金 | I31: 美容費 | L31: カット | M31: 3,500
I32: 交通費
I33: レジャー費
I34: 慶弔・交際費
I35: その他
B37: 固定支出合計 | C37: =SUM(C16:C36) -> ¥173,220
I40: 支出合計 | K40: =SUM(K19:K39) -> ¥5,756 | M40: =SUM(M19:M39) -> ¥6,293 | O40: =SUM(O19:O39) -> ¥0 | Q40: =SUM(Q19:Q39) -> ¥0 | S40: =SUM(S19:S39) -> ¥0 | U40: =SUM(U19:U39) -> ¥0 | W40: =SUM(W19:W39) -> ¥0 | Y40: =SUM(Y19:Y39) -> ¥0 | AA40: =SUM(AA19:AA39) -> ¥0 | AC40: =SUM(AC19:AC39) -> ¥0 | AE40: =SUM(AE19:AE39) -> ¥0 | AG40: =SUM(AG19:AG39) -> ¥0 | AI40: =SUM(AI19:AI39) -> ¥0 | AK40: =SUM(AK19:AK39) -> ¥0 | AM40: =SUM(AM19:AM39) -> ¥0 | AO40: =SUM(AO19:AO39) -> ¥0 | AQ40: =SUM(AQ19:AQ39) -> ¥0 | AS40: =SUM(AS19:AS39) -> ¥0 | AU40: =SUM(AU19:AU39) -> ¥0 | AW40: =SUM(AW19:AW39) -> ¥0 | AY40: =SUM(AY19:AY39) -> ¥0 | BA40: =SUM(BA19:BA39) -> ¥0 | BC40: =SUM(BC19:BC39) -> ¥0 | BE40: =SUM(BE19:BE39) -> ¥0 | BG40: =SUM(BG19:BG39) -> ¥0 | BI40: =SUM(BI19:BI39) -> ¥0 | BK40: =SUM(BK19:BK39) -> ¥0 | BM40: =SUM(BM19:BM39) -> ¥0 | BO40: =SUM(BO19:BO39) -> ¥0 | BQ40: =SUM(BQ19:BQ39) -> ¥0 | BS40: =SUM(BS19:BS39) -> ¥0
I41: 臨時収入 | M41: ¥1,500
I42: 差引残高 | K42: =C10-C37-K40+K41 -> ¥121,024 | M42: =K42-M40+M41 -> ¥116,231 | O42: =M42-O40+O41 -> ¥116,231 | Q42: =O42-Q40+Q41 -> ¥116,231 | S42: =Q42-S40+S41 -> ¥116,231 | U42: =S42-U40+U41 -> ¥116,231 | W42: =U42-W40+W41 -> ¥116,231 | Y42: =W42-Y40+Y41 -> ¥116,231 | AA42: =Y42-AA40+AA41 -> ¥116,231 | AC42: =AA42-AC40+AC41 -> ¥116,231 | AE42: =AC42-AE40+AE41 -> ¥116,231 | AG42: =AE42-AG40+AG41 -> ¥116,231 | AI42: =AG42-AI40+AI41 -> ¥116,231 | AK42: =AI42-AK40+AK41 -> ¥116,231 | AM42: =AK42-AM40+AM41 -> ¥116,231 | AO42: =AM42-AO40+AO41 -> ¥116,231 | AQ42: =AO42-AQ40+AQ41 -> ¥116,231 | AS42: =AQ42-AS40+AS41 -> ¥116,231 | AU42: =AS42-AU40+AU41 -> ¥116,231 | AW42: =AU42-AW40+AW41 -> ¥116,231 | AY42: =AW42-AY40+AY41 -> ¥116,231 | BA42: =AY42-BA40+BA41 -> ¥116,231 | BC42: =BA42-BC40+BC41 -> ¥116,231 | BE42: =BC42-BE40+BE41 -> ¥116,231 | BG42: =BE42-BG40+BG41 -> ¥116,231 | BI42: =BG42-BI40+BI41 -> ¥116,231 | BK42: =BI42-BK40+BK41 -> ¥116,231 | BM42: =BK42-BM40+BM41 -> ¥116,231 | BO42: =BM42-BO40+BO41 -> ¥116,231 | BQ42: =BO42-BQ40+BQ41 -> ¥116,231 | BS42: =BQ42-BS40+BS41 -> ¥116,231

Sheet 6月
B2: ='1月'!B2 -> 2009 | C2: 年 | D2: =DATE(B2,6,1) -> 2009-06-01 | E2: 月の家計簿 | I2: 毎日の記録 | J2: =DATE(B2,6,1) -> 2009-06-01 | K2: =TEXT(J2,"(aaa)") -> (Mon) | L2: =J2+1 -> 2009-06-02 | M2: =TEXT(L2,"(aaa)") -> (Tue) | N2: =L2+1 -> 2009-06-03 | O2: =TEXT(N2,"(aaa)") -> (Wed) | P2: =N2+1 -> 2009-06-04 | Q2: =TEXT(P2,"(aaa)") -> (Thu) | R2: =P2+1 -> 2009-06-05 | S2: =TEXT(R2,"(aaa)") -> (Fri) | T2: =R2+1 -> 2009-06-06 | U2: =TEXT(T2,"(aaa)") -> (Sat) | V2: =T2+1 -> 2009-06-07 | W2: =TEXT(V2,"(aaa)") -> (Sun) | X2: =V2+1 -> 2009-06-08 | Y2: =TEXT(X2,"(aaa)") -> (Mon) | Z2: =X2+1 -> 2009-06-09 | AA2: =TEXT(Z2,"(aaa)") -> (Tue) | AB2: =Z2+1 -> 2009-06-10 | AC2: =TEXT(AB2,"(aaa)") -> (Wed) | AD2: =AB2+1 -> 2009-06-11 | AE2: =TEXT(AD2,"(aaa)") -> (Thu) | AF2: =AD2+1 -> 2009-06-12 | AG2: =TEXT(AF2,"(aaa)") -> (Fri) | AH2: =AF2+1 -> 2009-06-13 | AI2: =TEXT(AH2,"(aaa)") -> (Sat) | AJ2: =AH2+1 -> 2009-06-14 | AK2: =TEXT(AJ2,"(aaa)") -> (Sun) | AL2: =AJ2+1 -> 2009-06-15 | AM2: =TEXT(AL2,"(aaa)") -> (Mon) | AN2: =AL2+1 -> 2009-06-16 | AO2: =TEXT(AN2,"(aaa)") -> (Tue) | AP2: =AN2+1 -> 2009-06-17 | AQ2: =TEXT(AP2,"(aaa)") -> (Wed) | AR2: =AP2+1 -> 2009-06-18 | AS2: =TEXT(AR2,"(aaa)") -> (Thu) | AT2: =AR2+1 -> 2009-06-19 | AU2: =TEXT(AT2,"(aaa)") -> (Fri) | AV2: =AT2+1 -> 2009-06-20 | AW2: =TEXT(AV2,"(aaa)") -> (Sat) | AX2: =AV2+1 -> 2009-06-21 | AY2: =TEXT(AX2,"(aaa)") -> (Sun) | AZ2: =AX2+1 -> 2009-06-22 | BA2: =TEXT(AZ2,"(aaa)") -> (Mon) | BB2: =AZ2+1 -> 2009-06-23 | BC2: =TEXT(BB2,"(aaa)") -> (Tue) | BD2: =BB2+1 -> 2009-06-24 | BE2: =TEXT(BD2,"(aaa)") -> (Wed) | BF2: =BD2+1 -> 2009-06-25 | BG2: =TEXT(BF2,"(aaa)") -> (Thu) | BH2: =BF2+1 -> 2009-06-26 | BI2: =TEXT(BH2,"(aaa)") -> (Fri) | BJ2: =BH2+1 -> 2009-06-27 | BK2: =TEXT(BJ2,"(aaa)") -> (Sat) | BL2: =BJ2+1 -> 2009-06-28 | BM2: =TEXT(BL2,"(aaa)") -> (Sun) | BN2: =BL2+1 -> 2009-06-29 | BO2: =TEXT(BN2,"(aaa)") -> (Mon) | BP2: =BN2+1 -> 2009-06-30 | BQ2: =TEXT(BP2,"(aaa)") -> (Tue)
J3: 品名 | K3: 金額 | L3: 品名 | M3: 金額 | N3: 品名 | O3: 金額 | P3: 品名 | Q3: 金額 | R3: 品名 | S3: 金額 | T3: 品名 | U3: 金額 | V3: 品名 | W3: 金額 | X3: 品名 | Y3: 金額 | Z3: 品名 | AA3: 金額 | AB3: 品名 | AC3: 金額 | AD3: 品名 | AE3: 金額 | AF3: 品名 | AG3: 金額 | AH3: 品名 | AI3: 金額 | AJ3: 品名 | AK3: 金額 | AL3: 品名 | AM3: 金額 | AN3: 品名 | AO3: 金額 | AP3: 品名 | AQ3: 金額 | AR3: 品名 | AS3: 金額 | AT3: 品名 | AU3: 金額 | AV3: 品名 | AW3: 金額 | AX3: 品名 | AY3: 金額 | AZ3: 品名 | BA3: 金額 | BB3: 品名 | BC3: 金額 | BD3: 品名 | BE3: 金額 | BF3: 品名 | BG3: 金額 | BH3: 品名 | BI3: 金額 | BJ3: 品名 | BK3: 金額 | BL3: 品名 | BM3: 金額 | BN3: 品名 | BO3: 金額 | BP3: 品名 | BQ3: 金額
B4: 今月の収入 | F4: 今月の生活費 | I4: 主食 | J4: 米５Ｋｇ | K4: 2,600
B5: 項目 | C5: 金額 | D5: 入金日 | F5: 項目 | G5: 購入金額 | J5: 食パン | K5: 160
B6: 給料（手取り） | C6: 300,000 | F6: 食費合計 | G6: =SUM(J19:BQ19) -> 6,951
F7: 日用雑貨合計 | G7: =SUM(J20:BQ25) -> 398 | I7: 副食 | J7: 卵６個 | K7: 168 | L7: 鳥ムネ肉 | M7: 552
F8: 教育・教養費 | G8: =SUM(J26:BQ27) -> 1200 | J8: キャベツ | K8: 200 | L8: 長ネギ３本 | M8: 250
B9: ボーナス | F9: 上記以外合計 | G9: =SUM(J28:BQ39) -> 3500 | J9: ブロッコリー | K9: 250 | L9: ツナ缶+3 | M9: 346
B10: 収入合計 | C10: =SUM(C6:C9) -> ¥300,000 | F10: 生活費合計 | G10: =SUM(G6:G9) -> ¥12,049 | L10: りんご２個 | M10: 300
B13: 今月の固定支出
F14: 今月の残金
B15: 項目 | C15: 金額 | D15: 支払日 | I15: 嗜好品 | J15: ビール６本 | K15: 1,980 | L15: ポテトチップ | M15: 145
B16: 電気代 | C16: 4,500 | F16: =C10-C37-G10+SUM(J41:BQ41) -> ¥116,231
B17: ガス代 | C17: 3,800
B18: 水道代 | C18: 1,040 | F18: 累計残金 | I18: 外食
B19: 電話代 | C19: 4,000 | I19: 食費合計 | K19: =SUM(K4:K18) -> ¥5,358 | M19: =SUM(M4:M18) -> ¥1,593 | O19: =SUM(O4:O18) -> ¥0 | Q19: =SUM(Q4:Q18) -> ¥0 | S19: =SUM(S4:S18) -> ¥0 | U19: =SUM(U4:U18) -> ¥0 | W19: =SUM(W4:W18) -> ¥0 | Y19: =SUM(Y4:Y18) -> ¥0 | AA19: =SUM(AA4:AA18) -> ¥0 | AC19: =SUM(AC4:AC18) -> ¥0 | AE19: =SUM(AE4:AE18) -> ¥0 | AG19: =SUM(AG4:AG18) -> ¥0 | AI19: =SUM(AI4:AI18) -> ¥0 | AK19: =SUM(AK4:AK18) -> ¥0 | AM19: =SUM(AM4:AM18) -> ¥0 | AO19: =SUM(AO4:AO18) -> ¥0 | AQ19: =SUM(AQ4:AQ18) -> ¥0 | AS19: =SUM(AS4:AS18) -> ¥0 | AU19: =SUM(AU4:AU18) -> ¥0 | AW19: =SUM(AW4:AW18) -> ¥0 | AY19: =SUM(AY4:AY18) -> ¥0 | BA19: =SUM(BA4:BA18) -> ¥0 | BC19: =SUM(BC4:BC18) -> ¥0 | BE19: =SUM(BE4:BE18) -> ¥0 | BG19: =SUM(BG4:BG18) -> ¥0 | BI19: =SUM(BI4:BI18) -> ¥0 | BK19: =SUM(BK4:BK18) -> ¥0 | BM19: =SUM(BM4:BM18) -> ¥0 | BO19: =SUM(BO4:BO18) -> ¥0 | BQ19: =SUM(BQ4:BQ18) -> ¥0
B20: 携帯電話代 | C20: 8,600 | F20: =F16 -> ¥116,231 | I20: 日用雑貨 | J20: T・ペーパー | K20: 398
B21: 新聞代 | C21: 2,980
B22: 受信料 | C22: 2,500 | F22: 今月のひとこと
B23: 住居費 | C23: 114,000
B24: インターネット代 | C24: 1,800
B25: 保険 | C25: 10,000
B26: 定期預金 | C26: 20,000 | I26: 教育・教養費 | L26: 書籍 | M26: 1,200
B27: ローン
B28: クレジット | I28: 衣料費
B29: 税金
B30: こづかい | I30: 医療費
B31: 貯金 | I31: 美容費 | L31: カット | M31: 3,500
I32: 交通費
I33: レジャー費
I34: 慶弔・交際費
I35: その他
B37: 固定支出合計 | C37: =SUM(C16:C36) -> ¥173,220
I40: 支出合計 | K40: =SUM(K19:K39) -> ¥5,756 | M40: =SUM(M19:M39) -> ¥6,293 | O40: =SUM(O19:O39) -> ¥0 | Q40: =SUM(Q19:Q39) -> ¥0 | S40: =SUM(S19:S39) -> ¥0 | U40: =SUM(U19:U39) -> ¥0 | W40: =SUM(W19:W39) -> ¥0 | Y40: =SUM(Y19:Y39) -> ¥0 | AA40: =SUM(AA19:AA39) -> ¥0 | AC40: =SUM(AC19:AC39) -> ¥0 | AE40: =SUM(AE19:AE39) -> ¥0 | AG40: =SUM(AG19:AG39) -> ¥0 | AI40: =SUM(AI19:AI39) -> ¥0 | AK40: =SUM(AK19:AK39) -> ¥0 | AM40: =SUM(AM19:AM39) -> ¥0 | AO40: =SUM(AO19:AO39) -> ¥0 | AQ40: =SUM(AQ19:AQ39) -> ¥0 | AS40: =SUM(AS19:AS39) -> ¥0 | AU40: =SUM(AU19:AU39) -> ¥0 | AW40: =SUM(AW19:AW39) -> ¥0 | AY40: =SUM(AY19:AY39) -> ¥0 | BA40: =SUM(BA19:BA39) -> ¥0 | BC40: =SUM(BC19:BC39) -> ¥0 | BE40: =SUM(BE19:BE39) -> ¥0 | BG40: =SUM(BG19:BG39) -> ¥0 | BI40: =SUM(BI19:BI39) -> ¥0 | BK40: =SUM(BK19:BK39) -> ¥0 | BM40: =SUM(BM19:BM39) -> ¥0 | BO40: =SUM(BO19:BO39) -> ¥0 | BQ40: =SUM(BQ19:BQ39) -> ¥0
I41: 臨時収入 | M41: ¥1,500
I42: 差引残高 | K42: =C10-C37-K40+K41 -> ¥121,024 | M42: =K42-M40+M41 -> ¥116,231 | O42: =M42-O40+O41 -> ¥116,231 | Q42: =O42-Q40+Q41 -> ¥116,231 | S42: =Q42-S40+S41 -> ¥116,231 | U42: =S42-U40+U41 -> ¥116,231 | W42: =U42-W40+W41 -> ¥116,231 | Y42: =W42-Y40+Y41 -> ¥116,231 | AA42: =Y42-AA40+AA41 -> ¥116,231 | AC42: =AA42-AC40+AC41 -> ¥116,231 | AE42: =AC42-AE40+AE41 -> ¥116,231 | AG42: =AE42-AG40+AG41 -> ¥116,231 | AI42: =AG42-AI40+AI41 -> ¥116,231 | AK42: =AI42-AK40+AK41 -> ¥116,231 | AM42: =AK42-AM40+AM41 -> ¥116,231 | AO42: =AM42-AO40+AO41 -> ¥116,231 | AQ42: =AO42-AQ40+AQ41 -> ¥116,231 | AS42: =AQ42-AS40+AS41 -> ¥116,231 | AU42: =AS42-AU40+AU41 -> ¥116,231 | AW42: =AU42-AW40+AW41 -> ¥116,231 | AY42: =AW42-AY40+AY41 -> ¥116,231 | BA42: =AY42-BA40+BA41 -> ¥116,231 | BC42: =BA42-BC40+BC41 -> ¥116,231 | BE42: =BC42-BE40+BE41 -> ¥116,231 | BG42: =BE42-BG40+BG41 -> ¥116,231 | BI42: =BG42-BI40+BI41 -> ¥116,231 | BK42: =BI42-BK40+BK41 -> ¥116,231 | BM42: =BK42-BM40+BM41 -> ¥116,231 | BO42: =BM42-BO40+BO41 -> ¥116,231 | BQ42: =BO42-BQ40+BQ41 -> ¥116,231

Sheet 7月
B2: ='1月'!B2 -> 2009 | C2: 年 | D2: =DATE(B2,7,1) -> 2009-07-01 | E2: 月の家計簿 | I2: 毎日の記録 | J2: =DATE(B2,7,1) -> 2009-07-01 | K2: =TEXT(J2,"(aaa)") -> (Wed) | L2: =J2+1 -> 2009-07-02 | M2: =TEXT(L2,"(aaa)") -> (Thu) | N2: =L2+1 -> 2009-07-03 | O2: =TEXT(N2,"(aaa)") -> (Fri) | P2: =N2+1 -> 2009-07-04 | Q2: =TEXT(P2,"(aaa)") -> (Sat) | R2: =P2+1 -> 2009-07-05 | S2: =TEXT(R2,"(aaa)") -> (Sun) | T2: =R2+1 -> 2009-07-06 | U2: =TEXT(T2,"(aaa)") -> (Mon) | V2: =T2+1 -> 2009-07-07 | W2: =TEXT(V2,"(aaa)") -> (Tue) | X2: =V2+1 -> 2009-07-08 | Y2: =TEXT(X2,"(aaa)") -> (Wed) | Z2: =X2+1 -> 2009-07-09 | AA2: =TEXT(Z2,"(aaa)") -> (Thu) | AB2: =Z2+1 -> 2009-07-10 | AC2: =TEXT(AB2,"(aaa)") -> (Fri) | AD2: =AB2+1 -> 2009-07-11 | AE2: =TEXT(AD2,"(aaa)") -> (Sat) | AF2: =AD2+1 -> 2009-07-12 | AG2: =TEXT(AF2,"(aaa)") -> (Sun) | AH2: =AF2+1 -> 2009-07-13 | AI2: =TEXT(AH2,"(aaa)") -> (Mon) | AJ2: =AH2+1 -> 2009-07-14 | AK2: =TEXT(AJ2,"(aaa)") -> (Tue) | AL2: =AJ2+1 -> 2009-07-15 | AM2: =TEXT(AL2,"(aaa)") -> (Wed) | AN2: =AL2+1 -> 2009-07-16 | AO2: =TEXT(AN2,"(aaa)") -> (Thu) | AP2: =AN2+1 -> 2009-07-17 | AQ2: =TEXT(AP2,"(aaa)") -> (Fri) | AR2: =AP2+1 -> 2009-07-18 | AS2: =TEXT(AR2,"(aaa)") -> (Sat) | AT2: =AR2+1 -> 2009-07-19 | AU2: =TEXT(AT2,"(aaa)") -> (Sun) | AV2: =AT2+1 -> 2009-07-20 | AW2: =TEXT(AV2,"(aaa)") -> (Mon) | AX2: =AV2+1 -> 2009-07-21 | AY2: =TEXT(AX2,"(aaa)") -> (Tue) | AZ2: =AX2+1 -> 2009-07-22 | BA2: =TEXT(AZ2,"(aaa)") -> (Wed) | BB2: =AZ2+1 -> 2009-07-23 | BC2: =TEXT(BB2,"(aaa)") -> (Thu) | BD2: =BB2+1 -> 2009-07-24 | BE2: =TEXT(BD2,"(aaa)") -> (Fri) | BF2: =BD2+1 -> 2009-07-25 | BG2: =TEXT(BF2,"(aaa)") -> (Sat) | BH2: =BF2+1 -> 2009-07-26 | BI2: =TEXT(BH2,"(aaa)") -> (Sun) | BJ2: =BH2+1 -> 2009-07-27 | BK2: =TEXT(BJ2,"(aaa)") -> (Mon) | BL2: =BJ2+1 -> 2009-07-28 | BM2: =TEXT(BL2,"(aaa)") -> (Tue) | BN2: =BL2+1 -> 2009-07-29 | BO2: =TEXT(BN2,"(aaa)") -> (Wed) | BP2: =BN2+1 -> 2009-07-30 | BQ2: =TEXT(BP2,"(aaa)") -> (Thu) | BR2: =BP2+1 -> 2009-07-31 | BS2: =TEXT(BR2,"(aaa)") -> (Fri)
J3: 品名 | K3: 金額 | L3: 品名 | M3: 金額 | N3: 品名 | O3: 金額 | P3: 品名 | Q3: 金額 | R3: 品名 | S3: 金額 | T3: 品名 | U3: 金額 | V3: 品名 | W3: 金額 | X3: 品名 | Y3: 金額 | Z3: 品名 | AA3: 金額 | AB3: 品名 | AC3: 金額 | AD3: 品名 | AE3: 金額 | AF3: 品名 | AG3: 金額 | AH3: 品名 | AI3: 金額 | AJ3: 品名 | AK3: 金額 | AL3: 品名 | AM3: 金額 | AN3: 品名 | AO3: 金額 | AP3: 品名 | AQ3: 金額 | AR3: 品名 | AS3: 金額 | AT3: 品名 | AU3: 金額 | AV3: 品名 | AW3: 金額 | AX3: 品名 | AY3: 金額 | AZ3: 品名 | BA3: 金額 | BB3: 品名 | BC3: 金額 | BD3: 品名 | BE3: 金額 | BF3: 品名 | BG3: 金額 | BH3: 品名 | BI3: 金額 | BJ3: 品名 | BK3: 金額 | BL3: 品名 | BM3: 金額 | BN3: 品名 | BO3: 金額 | BP3: 品名 | BQ3: 金額 | BR3: 品名 | BS3: 金額
B4: 今月の収入 | F4: 今月の生活費 | I4: 主食 | J4: 米５Ｋｇ | K4: 2,600
B5: 項目 | C5: 金額 | D5: 入金日 | F5: 項目 | G5: 購入金額 | J5: 食パン | K5: 160
B6: 給料（手取り） | C6: 300,000 | F6: 食費合計 | G6: =SUM(J19:BS19) -> 6,951
F7: 日用雑貨合計 | G7: =SUM(J20:BS25) -> 398 | I7: 副食 | J7: 卵６個 | K7: 168 | L7: 鳥ムネ肉 | M7: 552
F8: 教育・教養費 | G8: =SUM(J26:BS27) -> 1200 | J8: キャベツ | K8: 200 | L8: 長ネギ３本 | M8: 250
B9: ボーナス | F9: 上記以外合計 | G9: =SUM(J28:BS39) -> 3500 | J9: ブロッコリー | K9: 250 | L9: ツナ缶+3 | M9: 346
B10: 収入合計 | C10: =SUM(C6:C9) -> ¥300,000 | F10: 生活費合計 | G10: =SUM(G6:G9) -> ¥12,049 | L10: りんご２個 | M10: 300
B13: 今月の固定支出
F14: 今月の残金
B15: 項目 | C15: 金額 | D15: 支払日 | I15: 嗜好品 | J15: ビール６本 | K15: 1,980 | L15: ポテトチップ | M15: 145
B16: 電気代 | C16: 4,500 | F16: =C10-C37-G10+SUM(J41:BS41) -> ¥116,231
B17: ガス代 | C17: 3,800
B18: 水道代 | C18: 1,040 | F18: 累計残金 | I18: 外食
B19: 電話代 | C19: 4,000 | I19: 食費合計 | K19: =SUM(K4:K18) -> ¥5,358 | M19: =SUM(M4:M18) -> ¥1,593 | O19: =SUM(O4:O18) -> ¥0 | Q19: =SUM(Q4:Q18) -> ¥0 | S19: =SUM(S4:S18) -> ¥0 | U19: =SUM(U4:U18) -> ¥0 | W19: =SUM(W4:W18) -> ¥0 | Y19: =SUM(Y4:Y18) -> ¥0 | AA19: =SUM(AA4:AA18) -> ¥0 | AC19: =SUM(AC4:AC18) -> ¥0 | AE19: =SUM(AE4:AE18) -> ¥0 | AG19: =SUM(AG4:AG18) -> ¥0 | AI19: =SUM(AI4:AI18) -> ¥0 | AK19: =SUM(AK4:AK18) -> ¥0 | AM19: =SUM(AM4:AM18) -> ¥0 | AO19: =SUM(AO4:AO18) -> ¥0 | AQ19: =SUM(AQ4:AQ18) -> ¥0 | AS19: =SUM(AS4:AS18) -> ¥0 | AU19: =SUM(AU4:AU18) -> ¥0 | AW19: =SUM(AW4:AW18) -> ¥0 | AY19: =SUM(AY4:AY18) -> ¥0 | BA19: =SUM(BA4:BA18) -> ¥0 | BC19: =SUM(BC4:BC18) -> ¥0 | BE19: =SUM(BE4:BE18) -> ¥0 | BG19: =SUM(BG4:BG18) -> ¥0 | BI19: =SUM(BI4:BI18) -> ¥0 | BK19: =SUM(BK4:BK18) -> ¥0 | BM19: =SUM(BM4:BM18) -> ¥0 | BO19: =SUM(BO4:BO18) -> ¥0 | BQ19: =SUM(BQ4:BQ18) -> ¥0 | BS19: =SUM(BS4:BS18) -> ¥0
B20: 携帯電話代 | C20: 8,600 | F20: =F16 -> ¥116,231 | I20: 日用雑貨 | J20: T・ペーパー | K20: 398
B21: 新聞代 | C21: 2,980
B22: 受信料 | C22: 2,500 | F22: 今月のひとこと
B23: 住居費 | C23: 114,000
B24: インターネット代 | C24: 1,800
B25: 保険 | C25: 10,000
B26: 定期預金 | C26: 20,000 | I26: 教育・教養費 | L26: 書籍 | M26: 1,200
B27: ローン
B28: クレジット | I28: 衣料費
B29: 税金
B30: こづかい | I30: 医療費
B31: 貯金 | I31: 美容費 | L31: カット | M31: 3,500
I32: 交通費
I33: レジャー費
I34: 慶弔・交際費
I35: その他
B37: 固定支出合計 | C37: =SUM(C16:C36) -> ¥173,220
I40: 支出合計 | K40: =SUM(K19:K39) -> ¥5,756 | M40: =SUM(M19:M39) -> ¥6,293 | O40: =SUM(O19:O39) -> ¥0 | Q40: =SUM(Q19:Q39) -> ¥0 | S40: =SUM(S19:S39) -> ¥0 | U40: =SUM(U19:U39) -> ¥0 | W40: =SUM(W19:W39) -> ¥0 | Y40: =SUM(Y19:Y39) -> ¥0 | AA40: =SUM(AA19:AA39) -> ¥0 | AC40: =SUM(AC19:AC39) -> ¥0 | AE40: =SUM(AE19:AE39) -> ¥0 | AG40: =SUM(AG19:AG39) -> ¥0 | AI40: =SUM(AI19:AI39) -> ¥0 | AK40: =SUM(AK19:AK39) -> ¥0 | AM40: =SUM(AM19:AM39) -> ¥0 | AO40: =SUM(AO19:AO39) -> ¥0 | AQ40: =SUM(AQ19:AQ39) -> ¥0 | AS40: =SUM(AS19:AS39) -> ¥0 | AU40: =SUM(AU19:AU39) -> ¥0 | AW40: =SUM(AW19:AW39) -> ¥0 | AY40: =SUM(AY19:AY39) -> ¥0 | BA40: =SUM(BA19:BA39) -> ¥0 | BC40: =SUM(BC19:BC39) -> ¥0 | BE40: =SUM(BE19:BE39) -> ¥0 | BG40: =SUM(BG19:BG39) -> ¥0 | BI40: =SUM(BI19:BI39) -> ¥0 | BK40: =SUM(BK19:BK39) -> ¥0 | BM40: =SUM(BM19:BM39) -> ¥0 | BO40: =SUM(BO19:BO39) -> ¥0 | BQ40: =SUM(BQ19:BQ39) -> ¥0 | BS40: =SUM(BS19:BS39) -> ¥0
I41: 臨時収入 | M41: ¥1,500
I42: 差引残高 | K42: =C10-C37-K40+K41 -> ¥121,024 | M42: =K42-M40+M41 -> ¥116,231 | O42: =M42-O40+O41 -> ¥116,231 | Q42: =O42-Q40+Q41 -> ¥116,231 | S42: =Q42-S40+S41 -> ¥116,231 | U42: =S42-U40+U41 -> ¥116,231 | W42: =U42-W40+W41 -> ¥116,231 | Y42: =W42-Y40+Y41 -> ¥116,231 | AA42: =Y42-AA40+AA41 -> ¥116,231 | AC42: =AA42-AC40+AC41 -> ¥116,231 | AE42: =AC42-AE40+AE41 -> ¥116,231 | AG42: =AE42-AG40+AG41 -> ¥116,231 | AI42: =AG42-AI40+AI41 -> ¥116,231 | AK42: =AI42-AK40+AK41 -> ¥116,231 | AM42: =AK42-AM40+AM41 -> ¥116,231 | AO42: =AM42-AO40+AO41 -> ¥116,231 | AQ42: =AO42-AQ40+AQ41 -> ¥116,231 | AS42: =AQ42-AS40+AS41 -> ¥116,231 | AU42: =AS42-AU40+AU41 -> ¥116,231 | AW42: =AU42-AW40+AW41 -> ¥116,231 | AY42: =AW42-AY40+AY41 -> ¥116,231 | BA42: =AY42-BA40+BA41 -> ¥116,231 | BC42: =BA42-BC40+BC41 -> ¥116,231 | BE42: =BC42-BE40+BE41 -> ¥116,231 | BG42: =BE42-BG40+BG41 -> ¥116,231 | BI42: =BG42-BI40+BI41 -> ¥116,231 | BK42: =BI42-BK40+BK41 -> ¥116,231 | BM42: =BK42-BM40+BM41 -> ¥116,231 | BO42: =BM42-BO40+BO41 -> ¥116,231 | BQ42: =BO42-BQ40+BQ41 -> ¥116,231 | BS42: =BQ42-BS40+BS41 -> ¥116,231

Sheet 8月
B2: ='1月'!B2 -> 2009 | C2: 年 | D2: =DATE(B2,8,1) -> 2009-08-01 | E2: 月の家計簿 | I2: 毎日の記録 | J2: =DATE(B2,8,1) -> 2009-08-01 | K2: =TEXT(J2,"(aaa)") -> (Sat) | L2: =J2+1 -> 2009-08-02 | M2: =TEXT(L2,"(aaa)") -> (Sun) | N2: =L2+1 -> 2009-08-03 | O2: =TEXT(N2,"(aaa)") -> (Mon) | P2: =N2+1 -> 2009-08-04 | Q2: =TEXT(P2,"(aaa)") -> (Tue) | R2: =P2+1 -> 2009-08-05 | S2: =TEXT(R2,"(aaa)") -> (Wed) | T2: =R2+1 -> 2009-08-06 | U2: =TEXT(T2,"(aaa)") -> (Thu) | V2: =T2+1 -> 2009-08-07 | W2: =TEXT(V2,"(aaa)") -> (Fri) | X2: =V2+1 -> 2009-08-08 | Y2: =TEXT(X2,"(aaa)") -> (Sat) | Z2: =X2+1 -> 2009-08-09 | AA2: =TEXT(Z2,"(aaa)") -> (Sun) | AB2: =Z2+1 -> 2009-08-10 | AC2: =TEXT(AB2,"(aaa)") -> (Mon) | AD2: =AB2+1 -> 2009-08-11 | AE2: =TEXT(AD2,"(aaa)") -> (Tue) | AF2: =AD2+1 -> 2009-08-12 | AG2: =TEXT(AF2,"(aaa)") -> (Wed) | AH2: =AF2+1 -> 2009-08-13 | AI2: =TEXT(AH2,"(aaa)") -> (Thu) | AJ2: =AH2+1 -> 2009-08-14 | AK2: =TEXT(AJ2,"(aaa)") -> (Fri) | AL2: =AJ2+1 -> 2009-08-15 | AM2: =TEXT(AL2,"(aaa)") -> (Sat) | AN2: =AL2+1 -> 2009-08-16 | AO2: =TEXT(AN2,"(aaa)") -> (Sun) | AP2: =AN2+1 -> 2009-08-17 | AQ2: =TEXT(AP2,"(aaa)") -> (Mon) | AR2: =AP2+1 -> 2009-08-18 | AS2: =TEXT(AR2,"(aaa)") -> (Tue) | AT2: =AR2+1 -> 2009-08-19 | AU2: =TEXT(AT2,"(aaa)") -> (Wed) | AV2: =AT2+1 -> 2009-08-20 | AW2: =TEXT(AV2,"(aaa)") -> (Thu) | AX2: =AV2+1 -> 2009-08-21 | AY2: =TEXT(AX2,"(aaa)") -> (Fri) | AZ2: =AX2+1 -> 2009-08-22 | BA2: =TEXT(AZ2,"(aaa)") -> (Sat) | BB2: =AZ2+1 -> 2009-08-23 | BC2: =TEXT(BB2,"(aaa)") -> (Sun) | BD2: =BB2+1 -> 2009-08-24 | BE2: =TEXT(BD2,"(aaa)") -> (Mon) | BF2: =BD2+1 -> 2009-08-25 | BG2: =TEXT(BF2,"(aaa)") -> (Tue) | BH2: =BF2+1 -> 2009-08-26 | BI2: =TEXT(BH2,"(aaa)") -> (Wed) | BJ2: =BH2+1 -> 2009-08-27 | BK2: =TEXT(BJ2,"(aaa)") -> (Thu) | BL2: =BJ2+1 -> 2009-08-28 | BM2: =TEXT(BL2,"(aaa)") -> (Fri) | BN2: =BL2+1 -> 2009-08-29 | BO2: =TEXT(BN2,"(aaa)") -> (Sat) | BP2: =BN2+1 -> 2009-08-30 | BQ2: =TEXT(BP2,"(aaa)") -> (Sun) | BR2: =BP2+1 -> 2009-08-31 | BS2: =TEXT(BR2,"(aaa)") -> (Mon)
J3: 品名 | K3: 金額 | L3: 品名 | M3: 金額 | N3: 品名 | O3: 金額 | P3: 品名 | Q3: 金額 | R3: 品名 | S3: 金額 | T3: 品名 | U3: 金額 | V3: 品名 | W3: 金額 | X3: 品名 | Y3: 金額 | Z3: 品名 | AA3: 金額 | AB3: 品名 | AC3: 金額 | AD3: 品名 | AE3: 金額 | AF3: 品名 | AG3: 金額 | AH3: 品名 | AI3: 金額 | AJ3: 品名 | AK3: 金額 | AL3: 品名 | AM3: 金額 | AN3: 品名 | AO3: 金額 | AP3: 品名 | AQ3: 金額 | AR3: 品名 | AS3: 金額 | AT3: 品名 | AU3: 金額 | AV3: 品名 | AW3: 金額 | AX3: 品名 | AY3: 金額 | AZ3: 品名 | BA3: 金額 | BB3: 品名 | BC3: 金額 | BD3: 品名 | BE3: 金額 | BF3: 品名 | BG3: 金額 | BH3: 品名 | BI3: 金額 | BJ3: 品名 | BK3: 金額 | BL3: 品名 | BM3: 金額 | BN3: 品名 | BO3: 金額 | BP3: 品名 | BQ3: 金額 | BR3: 品名 | BS3: 金額
B4: 今月の収入 | F4: 今月の生活費 | I4: 主食 | J4: 米５Ｋｇ | K4: 2,600
B5: 項目 | C5: 金額 | D5: 入金日 | F5: 項目 | G5: 購入金額 | J5: 食パン | K5: 160
B6: 給料（手取り） | C6: 300,000 | F6: 食費合計 | G6: =SUM(J19:BS19) -> 6,951
F7: 日用雑貨合計 | G7: =SUM(J20:BS25) -> 398 | I7: 副食 | J7: 卵６個 | K7: 168 | L7: 鳥ムネ肉 | M7: 552
F8: 教育・教養費 | G8: =SUM(J26:BS27) -> 1200 | J8: キャベツ | K8: 200 | L8: 長ネギ３本 | M8: 250
B9: ボーナス | F9: 上記以外合計 | G9: =SUM(J28:BS39) -> 3500 | J9: ブロッコリー | K9: 250 | L9: ツナ缶+3 | M9: 346
B10: 収入合計 | C10: =SUM(C6:C9) -> ¥300,000 | F10: 生活費合計 | G10: =SUM(G6:G9) -> ¥12,049 | L10: りんご２個 | M10: 300
B13: 今月の固定支出
F14: 今月の残金
B15: 項目 | C15: 金額 | D15: 支払日 | I15: 嗜好品 | J15: ビール６本 | K15: 1,980 | L15: ポテトチップ | M15: 145
B16: 電気代 | C16: 4,500 | F16: =C10-C37-G10+SUM(J41:BS41) -> ¥116,231
B17: ガス代 | C17: 3,800
B18: 水道代 | C18: 1,040 | F18: 累計残金 | I18: 外食
B19: 電話代 | C19: 4,000 | I19: 食費合計 | K19: =SUM(K4:K18) -> ¥5,358 | M19: =SUM(M4:M18) -> ¥1,593 | O19: =SUM(O4:O18) -> ¥0 | Q19: =SUM(Q4:Q18) -> ¥0 | S19: =SUM(S4:S18) -> ¥0 | U19: =SUM(U4:U18) -> ¥0 | W19: =SUM(W4:W18) -> ¥0 | Y19: =SUM(Y4:Y18) -> ¥0 | AA19: =SUM(AA4:AA18) -> ¥0 | AC19: =SUM(AC4:AC18) -> ¥0 | AE19: =SUM(AE4:AE18) -> ¥0 | AG19: =SUM(AG4:AG18) -> ¥0 | AI19: =SUM(AI4:AI18) -> ¥0 | AK19: =SUM(AK4:AK18) -> ¥0 | AM19: =SUM(AM4:AM18) -> ¥0 | AO19: =SUM(AO4:AO18) -> ¥0 | AQ19: =SUM(AQ4:AQ18) -> ¥0 | AS19: =SUM(AS4:AS18) -> ¥0 | AU19: =SUM(AU4:AU18) -> ¥0 | AW19: =SUM(AW4:AW18) -> ¥0 | AY19: =SUM(AY4:AY18) -> ¥0 | BA19: =SUM(BA4:BA18) -> ¥0 | BC19: =SUM(BC4:BC18) -> ¥0 | BE19: =SUM(BE4:BE18) -> ¥0 | BG19: =SUM(BG4:BG18) -> ¥0 | BI19: =SUM(BI4:BI18) -> ¥0 | BK19: =SUM(BK4:BK18) -> ¥0 | BM19: =SUM(BM4:BM18) -> ¥0 | BO19: =SUM(BO4:BO18) -> ¥0 | BQ19: =SUM(BQ4:BQ18) -> ¥0 | BS19: =SUM(BS4:BS18) -> ¥0
B20: 携帯電話代 | C20: 8,600 | F20: =F16 -> ¥116,231 | I20: 日用雑貨 | J20: T・ペーパー | K20: 398
B21: 新聞代 | C21: 2,980
B22: 受信料 | C22: 2,500 | F22: 今月のひとこと
B23: 住居費 | C23: 114,000
B24: インターネット代 | C24: 1,800
B25: 保険 | C25: 10,000
B26: 定期預金 | C26: 20,000 | I26: 教育・教養費 | L26: 書籍 | M26: 1,200
B27: ローン
B28: クレジット | I28: 衣料費
B29: 税金
B30: こづかい | I30: 医療費
B31: 貯金 | I31: 美容費 | L31: カット | M31: 3,500
I32: 交通費
I33: レジャー費
I34: 慶弔・交際費
I35: その他
B37: 固定支出合計 | C37: =SUM(C16:C36) -> ¥173,220
I40: 支出合計 | K40: =SUM(K19:K39) -> ¥5,756 | M40: =SUM(M19:M39) -> ¥6,293 | O40: =SUM(O19:O39) -> ¥0 | Q40: =SUM(Q19:Q39) -> ¥0 | S40: =SUM(S19:S39) -> ¥0 | U40: =SUM(U19:U39) -> ¥0 | W40: =SUM(W19:W39) -> ¥0 | Y40: =SUM(Y19:Y39) -> ¥0 | AA40: =SUM(AA19:AA39) -> ¥0 | AC40: =SUM(AC19:AC39) -> ¥0 | AE40: =SUM(AE19:AE39) -> ¥0 | AG40: =SUM(AG19:AG39) -> ¥0 | AI40: =SUM(AI19:AI39) -> ¥0 | AK40: =SUM(AK19:AK39) -> ¥0 | AM40: =SUM(AM19:AM39) -> ¥0 | AO40: =SUM(AO19:AO39) -> ¥0 | AQ40: =SUM(AQ19:AQ39) -> ¥0 | AS40: =SUM(AS19:AS39) -> ¥0 | AU40: =SUM(AU19:AU39) -> ¥0 | AW40: =SUM(AW19:AW39) -> ¥0 | AY40: =SUM(AY19:AY39) -> ¥0 | BA40: =SUM(BA19:BA39) -> ¥0 | BC40: =SUM(BC19:BC39) -> ¥0 | BE40: =SUM(BE19:BE39) -> ¥0 | BG40: =SUM(BG19:BG39) -> ¥0 | BI40: =SUM(BI19:BI39) -> ¥0 | BK40: =SUM(BK19:BK39) -> ¥0 | BM40: =SUM(BM19:BM39) -> ¥0 | BO40: =SUM(BO19:BO39) -> ¥0 | BQ40: =SUM(BQ19:BQ39) -> ¥0 | BS40: =SUM(BS19:BS39) -> ¥0
I41: 臨時収入 | M41: ¥1,500
I42: 差引残高 | K42: =C10-C37-K40+K41 -> ¥121,024 | M42: =K42-M40+M41 -> ¥116,231 | O42: =M42-O40+O41 -> ¥116,231 | Q42: =O42-Q40+Q41 -> ¥116,231 | S42: =Q42-S40+S41 -> ¥116,231 | U42: =S42-U40+U41 -> ¥116,231 | W42: =U42-W40+W41 -> ¥116,231 | Y42: =W42-Y40+Y41 -> ¥116,231 | AA42: =Y42-AA40+AA41 -> ¥116,231 | AC42: =AA42-AC40+AC41 -> ¥116,231 | AE42: =AC42-AE40+AE41 -> ¥116,231 | AG42: =AE42-AG40+AG41 -> ¥116,231 | AI42: =AG42-AI40+AI41 -> ¥116,231 | AK42: =AI42-AK40+AK41 -> ¥116,231 | AM42: =AK42-AM40+AM41 -> ¥116,231 | AO42: =AM42-AO40+AO41 -> ¥116,231 | AQ42: =AO42-AQ40+AQ41 -> ¥116,231 | AS42: =AQ42-AS40+AS41 -> ¥116,231 | AU42: =AS42-AU40+AU41 -> ¥116,231 | AW42: =AU42-AW40+AW41 -> ¥116,231 | AY42: =AW42-AY40+AY41 -> ¥116,231 | BA42: =AY42-BA40+BA41 -> ¥116,231 | BC42: =BA42-BC40+BC41 -> ¥116,231 | BE42: =BC42-BE40+BE41 -> ¥116,231 | BG42: =BE42-BG40+BG41 -> ¥116,231 | BI42: =BG42-BI40+BI41 -> ¥116,231 | BK42: =BI42-BK40+BK41 -> ¥116,231 | BM42: =BK42-BM40+BM41 -> ¥116,231 | BO42: =BM42-BO40+BO41 -> ¥116,231 | BQ42: =BO42-BQ40+BQ41 -> ¥116,231 | BS42: =BQ42-BS40+BS41 -> ¥116,231

Sheet 9月
B2: ='1月'!B2 -> 2009 | C2: 年 | D2: =DATE(B2,9,1) -> 2009-09-01 | E2: 月の家計簿 | I2: 毎日の記録 | J2: =DATE(B2,9,1) -> 2009-09-01 | K2: =TEXT(J2,"(aaa)") -> (Tue) | L2: =J2+1 -> 2009-09-02 | M2: =TEXT(L2,"(aaa)") -> (Wed) | N2: =L2+1 -> 2009-09-03 | O2: =TEXT(N2,"(aaa)") -> (Thu) | P2: =N2+1 -> 2009-09-04 | Q2: =TEXT(P2,"(aaa)") -> (Fri) | R2: =P2+1 -> 2009-09-05 | S2: =TEXT(R2,"(aaa)") -> (Sat) | T2: =R2+1 -> 2009-09-06 | U2: =TEXT(T2,"(aaa)") -> (Sun) | V2: =T2+1 -> 2009-09-07 | W2: =TEXT(V2,"(aaa)") -> (Mon) | X2: =V2+1 -> 2009-09-08 | Y2: =TEXT(X2,"(aaa)") -> (Tue) | Z2: =X2+1 -> 2009-09-09 | AA2: =TEXT(Z2,"(aaa)") -> (Wed) | AB2: =Z2+1 -> 2009-09-10 | AC2: =TEXT(AB2,"(aaa)") -> (Thu) | AD2: =AB2+1 -> 2009-09-11 | AE2: =TEXT(AD2,"(aaa)") -> (Fri) | AF2: =AD2+1 -> 2009-09-12 | AG2: =TEXT(AF2,"(aaa)") -> (Sat) | AH2: =AF2+1 -> 2009-09-13 | AI2: =TEXT(AH2,"(aaa)") -> (Sun) | AJ2: =AH2+1 -> 2009-09-14 | AK2: =TEXT(AJ2,"(aaa)") -> (Mon) | AL2: =AJ2+1 -> 2009-09-15 | AM2: =TEXT(AL2,"(aaa)") -> (Tue) | AN2: =AL2+1 -> 2009-09-16 | AO2: =TEXT(AN2,"(aaa)") -> (Wed) | AP2: =AN2+1 -> 2009-09-17 | AQ2: =TEXT(AP2,"(aaa)") -> (Thu) | AR2: =AP2+1 -> 2009-09-18 | AS2: =TEXT(AR2,"(aaa)") -> (Fri) | AT2: =AR2+1 -> 2009-09-19 | AU2: =TEXT(AT2,"(aaa)") -> (Sat) | AV2: =AT2+1 -> 2009-09-20 | AW2: =TEXT(AV2,"(aaa)") -> (Sun) | AX2: =AV2+1 -> 2009-09-21 | AY2: =TEXT(AX2,"(aaa)") -> (Mon) | AZ2: =AX2+1 -> 2009-09-22 | BA2: =TEXT(AZ2,"(aaa)") -> (Tue) | BB2: =AZ2+1 -> 2009-09-23 | BC2: =TEXT(BB2,"(aaa)") -> (Wed) | BD2: =BB2+1 -> 2009-09-24 | BE2: =TEXT(BD2,"(aaa)") -> (Thu) | BF2: =BD2+1 -> 2009-09-25 | BG2: =TEXT(BF2,"(aaa)") -> (Fri) | BH2: =BF2+1 -> 2009-09-26 | BI2: =TEXT(BH2,"(aaa)") -> (Sat) | BJ2: =BH2+1 -> 2009-09-27 | BK2: =TEXT(BJ2,"(aaa)") -> (Sun) | BL2: =BJ2+1 -> 2009-09-28 | BM2: =TEXT(BL2,"(aaa)") -> (Mon) | BN2: =BL2+1 -> 2009-09-29 | BO2: =TEXT(BN2,"(aaa)") -> (Tue) | BP2: =BN2+1 -> 2009-09-30 | BQ2: =TEXT(BP2,"(aaa)") -> (Wed)
J3: 品名 | K3: 金額 | L3: 品名 | M3: 金額 | N3: 品名 | O3: 金額 | P3: 品名 | Q3: 金額 | R3: 品名 | S3: 金額 | T3: 品名 | U3: 金額 | V3: 品名 | W3: 金額 | X3: 品名 | Y3: 金額 | Z3: 品名 | AA3: 金額 | AB3: 品名 | AC3: 金額 | AD3: 品名 | AE3: 金額 | AF3: 品名 | AG3: 金額 | AH3: 品名 | AI3: 金額 | AJ3: 品名 | AK3: 金額 | AL3: 品名 | AM3: 金額 | AN3: 品名 | AO3: 金額 | AP3: 品名 | AQ3: 金額 | AR3: 品名 | AS3: 金額 | AT3: 品名 | AU3: 金額 | AV3: 品名 | AW3: 金額 | AX3: 品名 | AY3: 金額 | AZ3: 品名 | BA3: 金額 | BB3: 品名 | BC3: 金額 | BD3: 品名 | BE3: 金額 | BF3: 品名 | BG3: 金額 | BH3: 品名 | BI3: 金額 | BJ3: 品名 | BK3: 金額 | BL3: 品名 | BM3: 金額 | BN3: 品名 | BO3: 金額 | BP3: 品名 | BQ3: 金額
B4: 今月の収入 | F4: 今月の生活費 | I4: 主食 | J4: 米５Ｋｇ | K4: 2,600
B5: 項目 | C5: 金額 | D5: 入金日 | F5: 項目 | G5: 購入金額 | J5: 食パン | K5: 160
B6: 給料（手取り） | C6: 300,000 | F6: 食費合計 | G6: =SUM(J19:BQ19) -> 6,951
F7: 日用雑貨合計 | G7: =SUM(J20:BQ25) -> 398 | I7: 副食 | J7: 卵６個 | K7: 168 | L7: 鳥ムネ肉 | M7: 552
F8: 教育・教養費 | G8: =SUM(J26:BQ27) -> 1200 | J8: キャベツ | K8: 200 | L8: 長ネギ３本 | M8: 250
B9: ボーナス | F9: 上記以外合計 | G9: =SUM(J28:BQ39) -> 3500 | J9: ブロッコリー | K9: 250 | L9: ツナ缶+3 | M9: 346
B10: 収入合計 | C10: =SUM(C6:C9) -> ¥300,000 | F10: 生活費合計 | G10: =SUM(G6:G9) -> ¥12,049 | L10: りんご２個 | M10: 300
B13: 今月の固定支出
F14: 今月の残金
B15: 項目 | C15: 金額 | D15: 支払日 | I15: 嗜好品 | J15: ビール６本 | K15: 1,980 | L15: ポテトチップ | M15: 145
B16: 電気代 | C16: 4,500 | F16: =C10-C37-G10+SUM(J41:BQ41) -> ¥116,231
B17: ガス代 | C17: 3,800
B18: 水道代 | C18: 1,040 | F18: 累計残金 | I18: 外食
B19: 電話代 | C19: 4,000 | I19: 食費合計 | K19: =SUM(K4:K18) -> ¥5,358 | M19: =SUM(M4:M18) -> ¥1,593 | O19: =SUM(O4:O18) -> ¥0 | Q19: =SUM(Q4:Q18) -> ¥0 | S19: =SUM(S4:S18) -> ¥0 | U19: =SUM(U4:U18) -> ¥0 | W19: =SUM(W4:W18) -> ¥0 | Y19: =SUM(Y4:Y18) -> ¥0 | AA19: =SUM(AA4:AA18) -> ¥0 | AC19: =SUM(AC4:AC18) -> ¥0 | AE19: =SUM(AE4:AE18) -> ¥0 | AG19: =SUM(AG4:AG18) -> ¥0 | AI19: =SUM(AI4:AI18) -> ¥0 | AK19: =SUM(AK4:AK18) -> ¥0 | AM19: =SUM(AM4:AM18) -> ¥0 | AO19: =SUM(AO4:AO18) -> ¥0 | AQ19: =SUM(AQ4:AQ18) -> ¥0 | AS19: =SUM(AS4:AS18) -> ¥0 | AU19: =SUM(AU4:AU18) -> ¥0 | AW19: =SUM(AW4:AW18) -> ¥0 | AY19: =SUM(AY4:AY18) -> ¥0 | BA19: =SUM(BA4:BA18) -> ¥0 | BC19: =SUM(BC4:BC18) -> ¥0 | BE19: =SUM(BE4:BE18) -> ¥0 | BG19: =SUM(BG4:BG18) -> ¥0 | BI19: =SUM(BI4:BI18) -> ¥0 | BK19: =SUM(BK4:BK18) -> ¥0 | BM19: =SUM(BM4:BM18) -> ¥0 | BO19: =SUM(BO4:BO18) -> ¥0 | BQ19: =SUM(BQ4:BQ18) -> ¥0
B20: 携帯電話代 | C20: 8,600 | F20: =F16 -> ¥116,231 | I20: 日用雑貨 | J20: T・ペーパー | K20: 398
B21: 新聞代 | C21: 2,980
B22: 受信料 | C22: 2,500 | F22: 今月のひとこと
B23: 住居費 | C23: 114,000
B24: インターネット代 | C24: 1,800
B25: 保険 | C25: 10,000
B26: 定期預金 | C26: 20,000 | I26: 教育・教養費 | L26: 書籍 | M26: 1,200
B27: ローン
B28: クレジット | I28: 衣料費
B29: 税金
B30: こづかい | I30: 医療費
B31: 貯金 | I31: 美容費 | L31: カット | M31: 3,500
I32: 交通費
I33: レジャー費
I34: 慶弔・交際費
I35: その他
B37: 固定支出合計 | C37: =SUM(C16:C36) -> ¥173,220
I40: 支出合計 | K40: =SUM(K19:K39) -> ¥5,756 | M40: =SUM(M19:M39) -> ¥6,293 | O40: =SUM(O19:O39) -> ¥0 | Q40: =SUM(Q19:Q39) -> ¥0 | S40: =SUM(S19:S39) -> ¥0 | U40: =SUM(U19:U39) -> ¥0 | W40: =SUM(W19:W39) -> ¥0 | Y40: =SUM(Y19:Y39) -> ¥0 | AA40: =SUM(AA19:AA39) -> ¥0 | AC40: =SUM(AC19:AC39) -> ¥0 | AE40: =SUM(AE19:AE39) -> ¥0 | AG40: =SUM(AG19:AG39) -> ¥0 | AI40: =SUM(AI19:AI39) -> ¥0 | AK40: =SUM(AK19:AK39) -> ¥0 | AM40: =SUM(AM19:AM39) -> ¥0 | AO40: =SUM(AO19:AO39) -> ¥0 | AQ40: =SUM(AQ19:AQ39) -> ¥0 | AS40: =SUM(AS19:AS39) -> ¥0 | AU40: =SUM(AU19:AU39) -> ¥0 | AW40: =SUM(AW19:AW39) -> ¥0 | AY40: =SUM(AY19:AY39) -> ¥0 | BA40: =SUM(BA19:BA39) -> ¥0 | BC40: =SUM(BC19:BC39) -> ¥0 | BE40: =SUM(BE19:BE39) -> ¥0 | BG40: =SUM(BG19:BG39) -> ¥0 | BI40: =SUM(BI19:BI39) -> ¥0 | BK40: =SUM(BK19:BK39) -> ¥0 | BM40: =SUM(BM19:BM39) -> ¥0 | BO40: =SUM(BO19:BO39) -> ¥0 | BQ40: =SUM(BQ19:BQ39) -> ¥0
I41: 臨時収入 | M41: ¥1,500
I42: 差引残高 | K42: =C10-C37-K40+K41 -> ¥121,024 | M42: =K42-M40+M41 -> ¥116,231 | O42: =M42-O40+O41 -> ¥116,231 | Q42: =O42-Q40+Q41 -> ¥116,231 | S42: =Q42-S40+S41 -> ¥116,231 | U42: =S42-U40+U41 -> ¥116,231 | W42: =U42-W40+W41 -> ¥116,231 | Y42: =W42-Y40+Y41 -> ¥116,231 | AA42: =Y42-AA40+AA41 -> ¥116,231 | AC42: =AA42-AC40+AC41 -> ¥116,231 | AE42: =AC42-AE40+AE41 -> ¥116,231 | AG42: =AE42-AG40+AG41 -> ¥116,231 | AI42: =AG42-AI40+AI41 -> ¥116,231 | AK42: =AI42-AK40+AK41 -> ¥116,231 | AM42: =AK42-AM40+AM41 -> ¥116,231 | AO42: =AM42-AO40+AO41 -> ¥116,231 | AQ42: =AO42-AQ40+AQ41 -> ¥116,231 | AS42: =AQ42-AS40+AS41 -> ¥116,231 | AU42: =AS42-AU40+AU41 -> ¥116,231 | AW42: =AU42-AW40+AW41 -> ¥116,231 | AY42: =AW42-AY40+AY41 -> ¥116,231 | BA42: =AY42-BA40+BA41 -> ¥116,231 | BC42: =BA42-BC40+BC41 -> ¥116,231 | BE42: =BC42-BE40+BE41 -> ¥116,231 | BG42: =BE42-BG40+BG41 -> ¥116,231 | BI42: =BG42-BI40+BI41 -> ¥116,231 | BK42: =BI42-BK40+BK41 -> ¥116,231 | BM42: =BK42-BM40+BM41 -> ¥116,231 | BO42: =BM42-BO40+BO41 -> ¥116,231 | BQ42: =BO42-BQ40+BQ41 -> ¥116,231

Sheet 10月
B2: ='1月'!B2 -> 2009 | C2: 年 | D2: =DATE(B2,10,1) -> 2009-10-01 | E2: 月の家計簿 | I2: 毎日の記録 | J2: =DATE(B2,10,1) -> 2009-10-01 | K2: =TEXT(J2,"(aaa)") -> (Thu) | L2: =J2+1 -> 2009-10-02 | M2: =TEXT(L2,"(aaa)") -> (Fri) | N2: =L2+1 -> 2009-10-03 | O2: =TEXT(N2,"(aaa)") -> (Sat) | P2: =N2+1 -> 2009-10-04 | Q2: =TEXT(P2,"(aaa)") -> (Sun) | R2: =P2+1 -> 2009-10-05 | S2: =TEXT(R2,"(aaa)") -> (Mon) | T2: =R2+1 -> 2009-10-06 | U2: =TEXT(T2,"(aaa)") -> (Tue) | V2: =T2+1 -> 2009-10-07 | W2: =TEXT(V2,"(aaa)") -> (Wed) | X2: =V2+1 -> 2009-10-08 | Y2: =TEXT(X2,"(aaa)") -> (Thu) | Z2: =X2+1 -> 2009-10-09 | AA2: =TEXT(Z2,"(aaa)") -> (Fri) | AB2: =Z2+1 -> 2009-10-10 | AC2: =TEXT(AB2,"(aaa)") -> (Sat) | AD2: =AB2+1 -> 2009-10-11 | AE2: =TEXT(AD2,"(aaa)") -> (Sun) | AF2: =AD2+1 -> 2009-10-12 | AG2: =TEXT(AF2,"(aaa)") -> (Mon) | AH2: =AF2+1 -> 2009-10-13 | AI2: =TEXT(AH2,"(aaa)") -> (Tue) | AJ2: =AH2+1 -> 2009-10-14 | AK2: =TEXT(AJ2,"(aaa)") -> (Wed) | AL2: =AJ2+1 -> 2009-10-15 | AM2: =TEXT(AL2,"(aaa)") -> (Thu) | AN2: =AL2+1 -> 2009-10-16 | AO2: =TEXT(AN2,"(aaa)") -> (Fri) | AP2: =AN2+1 -> 2009-10-17 | AQ2: =TEXT(AP2,"(aaa)") -> (Sat) | AR2: =AP2+1 -> 2009-10-18 | AS2: =TEXT(AR2,"(aaa)") -> (Sun) | AT2: =AR2+1 -> 2009-10-19 | AU2: =TEXT(AT2,"(aaa)") -> (Mon) | AV2: =AT2+1 -> 2009-10-20 | AW2: =TEXT(AV2,"(aaa)") -> (Tue) | AX2: =AV2+1 -> 2009-10-21 | AY2: =TEXT(AX2,"(aaa)") -> (Wed) | AZ2: =AX2+1 -> 2009-10-22 | BA2: =TEXT(AZ2,"(aaa)") -> (Thu) | BB2: =AZ2+1 -> 2009-10-23 | BC2: =TEXT(BB2,"(aaa)") -> (Fri) | BD2: =BB2+1 -> 2009-10-24 | BE2: =TEXT(BD2,"(aaa)") -> (Sat) | BF2: =BD2+1 -> 2009-10-25 | BG2: =TEXT(BF2,"(aaa)") -> (Sun) | BH2: =BF2+1 -> 2009-10-26 | BI2: =TEXT(BH2,"(aaa)") -> (Mon) | BJ2: =BH2+1 -> 2009-10-27 | BK2: =TEXT(BJ2,"(aaa)") -> (Tue) | BL2: =BJ2+1 -> 2009-10-28 | BM2: =TEXT(BL2,"(aaa)") -> (Wed) | BN2: =BL2+1 -> 2009-10-29 | BO2: =TEXT(BN2,"(aaa)") -> (Thu) | BP2: =BN2+1 -> 2009-10-30 | BQ2: =TEXT(BP2,"(aaa)") -> (Fri) | BR2: =BP2+1 -> 2009-10-31 | BS2: =TEXT(BR2,"(aaa)") -> (Sat)
J3: 品名 | K3: 金額 | L3: 品名 | M3: 金額 | N3: 品名 | O3: 金額 | P3: 品名 | Q3: 金額 | R3: 品名 | S3: 金額 | T3: 品名 | U3: 金額 | V3: 品名 | W3: 金額 | X3: 品名 | Y3: 金額 | Z3: 品名 | AA3: 金額 | AB3: 品名 | AC3: 金額 | AD3: 品名 | AE3: 金額 | AF3: 品名 | AG3: 金額 | AH3: 品名 | AI3: 金額 | AJ3: 品名 | AK3: 金額 | AL3: 品名 | AM3: 金額 | AN3: 品名 | AO3: 金額 | AP3: 品名 | AQ3: 金額 | AR3: 品名 | AS3: 金額 | AT3: 品名 | AU3: 金額 | AV3: 品名 | AW3: 金額 | AX3: 品名 | AY3: 金額 | AZ3: 品名 | BA3: 金額 | BB3: 品名 | BC3: 金額 | BD3: 品名 | BE3: 金額 | BF3: 品名 | BG3: 金額 | BH3: 品名 | BI3: 金額 | BJ3: 品名 | BK3: 金額 | BL3: 品名 | BM3: 金額 | BN3: 品名 | BO3: 金額 | BP3: 品名 | BQ3: 金額 | BR3: 品名 | BS3: 金額
B4: 今月の収入 | F4: 今月の生活費 | I4: 主食 | J4: 米５Ｋｇ | K4: 2,600
B5: 項目 | C5: 金額 | D5: 入金日 | F5: 項目 | G5: 購入金額 | J5: 食パン | K5: 160
B6: 給料（手取り） | C6: 300,000 | F6: 食費合計 | G6: =SUM(J19:BS19) -> 6,951
F7: 日用雑貨合計 | G7: =SUM(J20:BS25) -> 398 | I7: 副食 | J7: 卵６個 | K7: 168 | L7: 鳥ムネ肉 | M7: 552
F8: 教育・教養費 | G8: =SUM(J26:BS27) -> 1200 | J8: キャベツ | K8: 200 | L8: 長ネギ３本 | M8: 250
B9: ボーナス | F9: 上記以外合計 | G9: =SUM(J28:BS39) -> 3500 | J9: ブロッコリー | K9: 250 | L9: ツナ缶+3 | M9: 346
B10: 収入合計 | C10: =SUM(C6:C9) -> ¥300,000 | F10: 生活費合計 | G10: =SUM(G6:G9) -> ¥12,049 | L10: りんご２個 | M10: 300
B13: 今月の固定支出
F14: 今月の残金
B15: 項目 | C15: 金額 | D15: 支払日 | I15: 嗜好品 | J15: ビール６本 | K15: 1,980 | L15: ポテトチップ | M15: 145
B16: 電気代 | C16: 4,500 | F16: =C10-C37-G10+SUM(J41:BS41) -> ¥116,231
B17: ガス代 | C17: 3,800
B18: 水道代 | C18: 1,040 | F18: 累計残金 | I18: 外食
B19: 電話代 | C19: 4,000 | I19: 食費合計 | K19: =SUM(K4:K18) -> ¥5,358 | M19: =SUM(M4:M18) -> ¥1,593 | O19: =SUM(O4:O18) -> ¥0 | Q19: =SUM(Q4:Q18) -> ¥0 | S19: =SUM(S4:S18) -> ¥0 | U19: =SUM(U4:U18) -> ¥0 | W19: =SUM(W4:W18) -> ¥0 | Y19: =SUM(Y4:Y18) -> ¥0 | AA19: =SUM(AA4:AA18) -> ¥0 | AC19: =SUM(AC4:AC18) -> ¥0 | AE19: =SUM(AE4:AE18) -> ¥0 | AG19: =SUM(AG4:AG18) -> ¥0 | AI19: =SUM(AI4:AI18) -> ¥0 | AK19: =SUM(AK4:AK18) -> ¥0 | AM19: =SUM(AM4:AM18) -> ¥0 | AO19: =SUM(AO4:AO18) -> ¥0 | AQ19: =SUM(AQ4:AQ18) -> ¥0 | AS19: =SUM(AS4:AS18) -> ¥0 | AU19: =SUM(AU4:AU18) -> ¥0 | AW19: =SUM(AW4:AW18) -> ¥0 | AY19: =SUM(AY4:AY18) -> ¥0 | BA19: =SUM(BA4:BA18) -> ¥0 | BC19: =SUM(BC4:BC18) -> ¥0 | BE19: =SUM(BE4:BE18) -> ¥0 | BG19: =SUM(BG4:BG18) -> ¥0 | BI19: =SUM(BI4:BI18) -> ¥0 | BK19: =SUM(BK4:BK18) -> ¥0 | BM19: =SUM(BM4:BM18) -> ¥0 | BO19: =SUM(BO4:BO18) -> ¥0 | BQ19: =SUM(BQ4:BQ18) -> ¥0 | BS19: =SUM(BS4:BS18) -> ¥0
B20: 携帯電話代 | C20: 8,600 | F20: =F16 -> ¥116,231 | I20: 日用雑貨 | J20: T・ペーパー | K20: 398
B21: 新聞代 | C21: 2,980
B22: 受信料 | C22: 2,500 | F22: 今月のひとこと
B23: 住居費 | C23: 114,000
B24: インターネット代 | C24: 1,800
B25: 保険 | C25: 10,000
B26: 定期預金 | C26: 20,000 | I26: 教育・教養費 | L26: 書籍 | M26: 1,200
B27: ローン
B28: クレジット | I28: 衣料費
B29: 税金
B30: こづかい | I30: 医療費
B31: 貯金 | I31: 美容費 | L31: カット | M31: 3,500
I32: 交通費
I33: レジャー費
I34: 慶弔・交際費
I35: その他
B37: 固定支出合計 | C37: =SUM(C16:C36) -> ¥173,220
I40: 支出合計 | K40: =SUM(K19:K39) -> ¥5,756 | M40: =SUM(M19:M39) -> ¥6,293 | O40: =SUM(O19:O39) -> ¥0 | Q40: =SUM(Q19:Q39) -> ¥0 | S40: =SUM(S19:S39) -> ¥0 | U40: =SUM(U19:U39) -> ¥0 | W40: =SUM(W19:W39) -> ¥0 | Y40: =SUM(Y19:Y39) -> ¥0 | AA40: =SUM(AA19:AA39) -> ¥0 | AC40: =SUM(AC19:AC39) -> ¥0 | AE40: =SUM(AE19:AE39) -> ¥0 | AG40: =SUM(AG19:AG39) -> ¥0 | AI40: =SUM(AI19:AI39) -> ¥0 | AK40: =SUM(AK19:AK39) -> ¥0 | AM40: =SUM(AM19:AM39) -> ¥0 | AO40: =SUM(AO19:AO39) -> ¥0 | AQ40: =SUM(AQ19:AQ39) -> ¥0 | AS40: =SUM(AS19:AS39) -> ¥0 | AU40: =SUM(AU19:AU39) -> ¥0 | AW40: =SUM(AW19:AW39) -> ¥0 | AY40: =SUM(AY19:AY39) -> ¥0 | BA40: =SUM(BA19:BA39) -> ¥0 | BC40: =SUM(BC19:BC39) -> ¥0 | BE40: =SUM(BE19:BE39) -> ¥0 | BG40: =SUM(BG19:BG39) -> ¥0 | BI40: =SUM(BI19:BI39) -> ¥0 | BK40: =SUM(BK19:BK39) -> ¥0 | BM40: =SUM(BM19:BM39) -> ¥0 | BO40: =SUM(BO19:BO39) -> ¥0 | BQ40: =SUM(BQ19:BQ39) -> ¥0 | BS40: =SUM(BS19:BS39) -> ¥0
I41: 臨時収入 | M41: ¥1,500
I42: 差引残高 | K42: =C10-C37-K40+K41 -> ¥121,024 | M42: =K42-M40+M41 -> ¥116,231 | O42: =M42-O40+O41 -> ¥116,231 | Q42: =O42-Q40+Q41 -> ¥116,231 | S42: =Q42-S40+S41 -> ¥116,231 | U42: =S42-U40+U41 -> ¥116,231 | W42: =U42-W40+W41 -> ¥116,231 | Y42: =W42-Y40+Y41 -> ¥116,231 | AA42: =Y42-AA40+AA41 -> ¥116,231 | AC42: =AA42-AC40+AC41 -> ¥116,231 | AE42: =AC42-AE40+AE41 -> ¥116,231 | AG42: =AE42-AG40+AG41 -> ¥116,231 | AI42: =AG42-AI40+AI41 -> ¥116,231 | AK42: =AI42-AK40+AK41 -> ¥116,231 | AM42: =AK42-AM40+AM41 -> ¥116,231 | AO42: =AM42-AO40+AO41 -> ¥116,231 | AQ42: =AO42-AQ40+AQ41 -> ¥116,231 | AS42: =AQ42-AS40+AS41 -> ¥116,231 | AU42: =AS42-AU40+AU41 -> ¥116,231 | AW42: =AU42-AW40+AW41 -> ¥116,231 | AY42: =AW42-AY40+AY41 -> ¥116,231 | BA42: =AY42-BA40+BA41 -> ¥116,231 | BC42: =BA42-BC40+BC41 -> ¥116,231 | BE42: =BC42-BE40+BE41 -> ¥116,231 | BG42: =BE42-BG40+BG41 -> ¥116,231 | BI42: =BG42-BI40+BI41 -> ¥116,231 | BK42: =BI42-BK40+BK41 -> ¥116,231 | BM42: =BK42-BM40+BM41 -> ¥116,231 | BO42: =BM42-BO40+BO41 -> ¥116,231 | BQ42: =BO42-BQ40+BQ41 -> ¥116,231 | BS42: =BQ42-BS40+BS41 -> ¥116,231

Sheet 11月
B2: ='1月'!B2 -> 2009 | C2: 年 | D2: =DATE(B2,11,1) -> 2009-11-01 | E2: 月の家計簿 | I2: 毎日の記録 | J2: =DATE(B2,11,1) -> 2009-11-01 | K2: =TEXT(J2,"(aaa)") -> (Sun) | L2: =J2+1 -> 2009-11-02 | M2: =TEXT(L2,"(aaa)") -> (Mon) | N2: =L2+1 -> 2009-11-03 | O2: =TEXT(N2,"(aaa)") -> (Tue) | P2: =N2+1 -> 2009-11-04 | Q2: =TEXT(P2,"(aaa)") -> (Wed) | R2: =P2+1 -> 2009-11-05 | S2: =TEXT(R2,"(aaa)") -> (Thu) | T2: =R2+1 -> 2009-11-06 | U2: =TEXT(T2,"(aaa)") -> (Fri) | V2: =T2+1 -> 2009-11-07 | W2: =TEXT(V2,"(aaa)") -> (Sat) | X2: =V2+1 -> 2009-11-08 | Y2: =TEXT(X2,"(aaa)") -> (Sun) | Z2: =X2+1 -> 2009-11-09 | AA2: =TEXT(Z2,"(aaa)") -> (Mon) | AB2: =Z2+1 -> 2009-11-10 | AC2: =TEXT(AB2,"(aaa)") -> (Tue) | AD2: =AB2+1 -> 2009-11-11 | AE2: =TEXT(AD2,"(aaa)") -> (Wed) | AF2: =AD2+1 -> 2009-11-12 | AG2: =TEXT(AF2,"(aaa)") -> (Thu) | AH2: =AF2+1 -> 2009-11-13 | AI2: =TEXT(AH2,"(aaa)") -> (Fri) | AJ2: =AH2+1 -> 2009-11-14 | AK2: =TEXT(AJ2,"(aaa)") -> (Sat) | AL2: =AJ2+1 -> 2009-11-15 | AM2: =TEXT(AL2,"(aaa)") -> (Sun) | AN2: =AL2+1 -> 2009-11-16 | AO2: =TEXT(AN2,"(aaa)") -> (Mon) | AP2: =AN2+1 -> 2009-11-17 | AQ2: =TEXT(AP2,"(aaa)") -> (Tue) | AR2: =AP2+1 -> 2009-11-18 | AS2: =TEXT(AR2,"(aaa)") -> (Wed) | AT2: =AR2+1 -> 2009-11-19 | AU2: =TEXT(AT2,"(aaa)") -> (Thu) | AV2: =AT2+1 -> 2009-11-20 | AW2: =TEXT(AV2,"(aaa)") -> (Fri) | AX2: =AV2+1 -> 2009-11-21 | AY2: =TEXT(AX2,"(aaa)") -> (Sat) | AZ2: =AX2+1 -> 2009-11-22 | BA2: =TEXT(AZ2,"(aaa)") -> (Sun) | BB2: =AZ2+1 -> 2009-11-23 | BC2: =TEXT(BB2,"(aaa)") -> (Mon) | BD2: =BB2+1 -> 2009-11-24 | BE2: =TEXT(BD2,"(aaa)") -> (Tue) | BF2: =BD2+1 -> 2009-11-25 | BG2: =TEXT(BF2,"(aaa)") -> (Wed) | BH2: =BF2+1 -> 2009-11-26 | BI2: =TEXT(BH2,"(aaa)") -> (Thu) | BJ2: =BH2+1 -> 2009-11-27 | BK2: =TEXT(BJ2,"(aaa)") -> (Fri) | BL2: =BJ2+1 -> 2009-11-28 | BM2: =TEXT(BL2,"(aaa)") -> (Sat) | BN2: =BL2+1 -> 2009-11-29 | BO2: =TEXT(BN2,"(aaa)") -> (Sun) | BP2: =BN2+1 -> 2009-11-30 | BQ2: =TEXT(BP2,"(aaa)") -> (Mon)
J3: 品名 | K3: 金額 | L3: 品名 | M3: 金額 | N3: 品名 | O3: 金額 | P3: 品名 | Q3: 金額 | R3: 品名 | S3: 金額 | T3: 品名 | U3: 金額 | V3: 品名 | W3: 金額 | X3: 品名 | Y3: 金額 | Z3: 品名 | AA3: 金額 | AB3: 品名 | AC3: 金額 | AD3: 品名 | AE3: 金額 | AF3: 品名 | AG3: 金額 | AH3: 品名 | AI3: 金額 | AJ3: 品名 | AK3: 金額 | AL3: 品名 | AM3: 金額 | AN3: 品名 | AO3: 金額 | AP3: 品名 | AQ3: 金額 | AR3: 品名 | AS3: 金額 | AT3: 品名 | AU3: 金額 | AV3: 品名 | AW3: 金額 | AX3: 品名 | AY3: 金額 | AZ3: 品名 | BA3: 金額 | BB3: 品名 | BC3: 金額 | BD3: 品名 | BE3: 金額 | BF3: 品名 | BG3: 金額 | BH3: 品名 | BI3: 金額 | BJ3: 品名 | BK3: 金額 | BL3: 品名 | BM3: 金額 | BN3: 品名 | BO3: 金額 | BP3: 品名 | BQ3: 金額
B4: 今月の収入 | F4: 今月の生活費 | I4: 主食 | J4: 米５Ｋｇ | K4: 2,600
B5: 項目 | C5: 金額 | D5: 入金日 | F5: 項目 | G5: 購入金額 | J5: 食パン | K5: 160
B6: 給料（手取り） | C6: 300,000 | F6: 食費合計 | G6: =SUM(J19:BQ19) -> 6,951
F7: 日用雑貨合計 | G7: =SUM(J20:BQ25) -> 398 | I7: 副食 | J7: 卵６個 | K7: 168 | L7: 鳥ムネ肉 | M7: 552
F8: 教育・教養費 | G8: =SUM(J26:BQ27) -> 1200 | J8: キャベツ | K8: 200 | L8: 長ネギ３本 | M8: 250
B9: ボーナス | F9: 上記以外合計 | G9: =SUM(J28:BQ39) -> 3500 | J9: ブロッコリー | K9: 250 | L9: ツナ缶+3 | M9: 346
B10: 収入合計 | C10: =SUM(C6:C9) -> ¥300,000 | F10: 生活費合計 | G10: =SUM(G6:G9) -> ¥12,049 | L10: りんご２個 | M10: 300
B13: 今月の固定支出
F14: 今月の残金
B15: 項目 | C15: 金額 | D15: 支払日 | I15: 嗜好品 | J15: ビール６本 | K15: 1,980 | L15: ポテトチップ | M15: 145
B16: 電気代 | C16: 4,500 | F16: =C10-C37-G10+SUM(J41:BQ41) -> ¥116,231
B17: ガス代 | C17: 3,800
B18: 水道代 | C18: 1,040 | F18: 累計残金 | I18: 外食
B19: 電話代 | C19: 4,000 | I19: 食費合計 | K19: =SUM(K4:K18) -> ¥5,358 | M19: =SUM(M4:M18) -> ¥1,593 | O19: =SUM(O4:O18) -> ¥0 | Q19: =SUM(Q4:Q18) -> ¥0 | S19: =SUM(S4:S18) -> ¥0 | U19: =SUM(U4:U18) -> ¥0 | W19: =SUM(W4:W18) -> ¥0 | Y19: =SUM(Y4:Y18) -> ¥0 | AA19: =SUM(AA4:AA18) -> ¥0 | AC19: =SUM(AC4:AC18) -> ¥0 | AE19: =SUM(AE4:AE18) -> ¥0 | AG19: =SUM(AG4:AG18) -> ¥0 | AI19: =SUM(AI4:AI18) -> ¥0 | AK19: =SUM(AK4:AK18) -> ¥0 | AM19: =SUM(AM4:AM18) -> ¥0 | AO19: =SUM(AO4:AO18) -> ¥0 | AQ19: =SUM(AQ4:AQ18) -> ¥0 | AS19: =SUM(AS4:AS18) -> ¥0 | AU19: =SUM(AU4:AU18) -> ¥0 | AW19: =SUM(AW4:AW18) -> ¥0 | AY19: =SUM(AY4:AY18) -> ¥0 | BA19: =SUM(BA4:BA18) -> ¥0 | BC19: =SUM(BC4:BC18) -> ¥0 | BE19: =SUM(BE4:BE18) -> ¥0 | BG19: =SUM(BG4:BG18) -> ¥0 | BI19: =SUM(BI4:BI18) -> ¥0 | BK19: =SUM(BK4:BK18) -> ¥0 | BM19: =SUM(BM4:BM18) -> ¥0 | BO19: =SUM(BO4:BO18) -> ¥0 | BQ19: =SUM(BQ4:BQ18) -> ¥0
B20: 携帯電話代 | C20: 8,600 | F20: =F16 -> ¥116,231 | I20: 日用雑貨 | J20: T・ペーパー | K20: 398
B21: 新聞代 | C21: 2,980
B22: 受信料 | C22: 2,500 | F22: 今月のひとこと
B23: 住居費 | C23: 114,000
B24: インターネット代 | C24: 1,800
B25: 保険 | C25: 10,000
B26: 定期預金 | C26: 20,000 | I26: 教育・教養費 | L26: 書籍 | M26: 1,200
B27: ローン
B28: クレジット | I28: 衣料費
B29: 税金
B30: こづかい | I30: 医療費
B31: 貯金 | I31: 美容費 | L31: カット | M31: 3,500
I32: 交通費
I33: レジャー費
I34: 慶弔・交際費
I35: その他
B37: 固定支出合計 | C37: =SUM(C16:C36) -> ¥173,220
I40: 支出合計 | K40: =SUM(K19:K39) -> ¥5,756 | M40: =SUM(M19:M39) -> ¥6,293 | O40: =SUM(O19:O39) -> ¥0 | Q40: =SUM(Q19:Q39) -> ¥0 | S40: =SUM(S19:S39) -> ¥0 | U40: =SUM(U19:U39) -> ¥0 | W40: =SUM(W19:W39) -> ¥0 | Y40: =SUM(Y19:Y39) -> ¥0 | AA40: =SUM(AA19:AA39) -> ¥0 | AC40: =SUM(AC19:AC39) -> ¥0 | AE40: =SUM(AE19:AE39) -> ¥0 | AG40: =SUM(AG19:AG39) -> ¥0 | AI40: =SUM(AI19:AI39) -> ¥0 | AK40: =SUM(AK19:AK39) -> ¥0 | AM40: =SUM(AM19:AM39) -> ¥0 | AO40: =SUM(AO19:AO39) -> ¥0 | AQ40: =SUM(AQ19:AQ39) -> ¥0 | AS40: =SUM(AS19:AS39) -> ¥0 | AU40: =SUM(AU19:AU39) -> ¥0 | AW40: =SUM(AW19:AW39) -> ¥0 | AY40: =SUM(AY19:AY39) -> ¥0 | BA40: =SUM(BA19:BA39) -> ¥0 | BC40: =SUM(BC19:BC39) -> ¥0 | BE40: =SUM(BE19:BE39) -> ¥0 | BG40: =SUM(BG19:BG39) -> ¥0 | BI40: =SUM(BI19:BI39) -> ¥0 | BK40: =SUM(BK19:BK39) -> ¥0 | BM40: =SUM(BM19:BM39) -> ¥0 | BO40: =SUM(BO19:BO39) -> ¥0 | BQ40: =SUM(BQ19:BQ39) -> ¥0
I41: 臨時収入 | M41: ¥1,500
I42: 差引残高 | K42: =C10-C37-K40+K41 -> ¥121,024 | M42: =K42-M40+M41 -> ¥116,231 | O42: =M42-O40+O41 -> ¥116,231 | Q42: =O42-Q40+Q41 -> ¥116,231 | S42: =Q42-S40+S41 -> ¥116,231 | U42: =S42-U40+U41 -> ¥116,231 | W42: =U42-W40+W41 -> ¥116,231 | Y42: =W42-Y40+Y41 -> ¥116,231 | AA42: =Y42-AA40+AA41 -> ¥116,231 | AC42: =AA42-AC40+AC41 -> ¥116,231 | AE42: =AC42-AE40+AE41 -> ¥116,231 | AG42: =AE42-AG40+AG41 -> ¥116,231 | AI42: =AG42-AI40+AI41 -> ¥116,231 | AK42: =AI42-AK40+AK41 -> ¥116,231 | AM42: =AK42-AM40+AM41 -> ¥116,231 | AO42: =AM42-AO40+AO41 -> ¥116,231 | AQ42: =AO42-AQ40+AQ41 -> ¥116,231 | AS42: =AQ42-AS40+AS41 -> ¥116,231 | AU42: =AS42-AU40+AU41 -> ¥116,231 | AW42: =AU42-AW40+AW41 -> ¥116,231 | AY42: =AW42-AY40+AY41 -> ¥116,231 | BA42: =AY42-BA40+BA41 -> ¥116,231 | BC42: =BA42-BC40+BC41 -> ¥116,231 | BE42: =BC42-BE40+BE41 -> ¥116,231 | BG42: =BE42-BG40+BG41 -> ¥116,231 | BI42: =BG42-BI40+BI41 -> ¥116,231 | BK42: =BI42-BK40+BK41 -> ¥116,231 | BM42: =BK42-BM40+BM41 -> ¥116,231 | BO42: =BM42-BO40+BO41 -> ¥116,231 | BQ42: =BO42-BQ40+BQ41 -> ¥116,231

Sheet 12月
B2: ='1月'!B2 -> 2009 | C2: 年 | D2: =DATE(B2,12,1) -> 2009-12-01 | E2: 月の家計簿 | I2: 毎日の記録 | J2: =DATE(B2,12,1) -> 2009-12-01 | K2: =TEXT(J2,"(aaa)") -> (Tue) | L2: =J2+1 -> 2009-12-02 | M2: =TEXT(L2,"(aaa)") -> (Wed) | N2: =L2+1 -> 2009-12-03 | O2: =TEXT(N2,"(aaa)") -> (Thu) | P2: =N2+1 -> 2009-12-04 | Q2: =TEXT(P2,"(aaa)") -> (Fri) | R2: =P2+1 -> 2009-12-05 | S2: =TEXT(R2,"(aaa)") -> (Sat) | T2: =R2+1 -> 2009-12-06 | U2: =TEXT(T2,"(aaa)") -> (Sun) | V2: =T2+1 -> 2009-12-07 | W2: =TEXT(V2,"(aaa)") -> (Mon) | X2: =V2+1 -> 2009-12-08 | Y2: =TEXT(X2,"(aaa)") -> (Tue) | Z2: =X2+1 -> 2009-12-09 | AA2: =TEXT(Z2,"(aaa)") -> (Wed) | AB2: =Z2+1 -> 2009-12-10 | AC2: =TEXT(AB2,"(aaa)") -> (Thu) | AD2: =AB2+1 -> 2009-12-11 | AE2: =TEXT(AD2,"(aaa)") -> (Fri) | AF2: =AD2+1 -> 2009-12-12 | AG2: =TEXT(AF2,"(aaa)") -> (Sat) | AH2: =AF2+1 -> 2009-12-13 | AI2: =TEXT(AH2,"(aaa)") -> (Sun) | AJ2: =AH2+1 -> 2009-12-14 | AK2: =TEXT(AJ2,"(aaa)") -> (Mon) | AL2: =AJ2+1 -> 2009-12-15 | AM2: =TEXT(AL2,"(aaa)") -> (Tue) | AN2: =AL2+1 -> 2009-12-16 | AO2: =TEXT(AN2,"(aaa)") -> (Wed) | AP2: =AN2+1 -> 2009-12-17 | AQ2: =TEXT(AP2,"(aaa)") -> (Thu) | AR2: =AP2+1 -> 2009-12-18 | AS2: =TEXT(AR2,"(aaa)") -> (Fri) | AT2: =AR2+1 -> 2009-12-19 | AU2: =TEXT(AT2,"(aaa)") -> (Sat) | AV2: =AT2+1 -> 2009-12-20 | AW2: =TEXT(AV2,"(aaa)") -> (Sun) | AX2: =AV2+1 -> 2009-12-21 | AY2: =TEXT(AX2,"(aaa)") -> (Mon) | AZ2: =AX2+1 -> 2009-12-22 | BA2: =TEXT(AZ2,"(aaa)") -> (Tue) | BB2: =AZ2+1 -> 2009-12-23 | BC2: =TEXT(BB2,"(aaa)") -> (Wed) | BD2: =BB2+1 -> 2009-12-24 | BE2: =TEXT(BD2,"(aaa)") -> (Thu) | BF2: =BD2+1 -> 2009-12-25 | BG2: =TEXT(BF2,"(aaa)") -> (Fri) | BH2: =BF2+1 -> 2009-12-26 | BI2: =TEXT(BH2,"(aaa)") -> (Sat) | BJ2: =BH2+1 -> 2009-12-27 | BK2: =TEXT(BJ2,"(aaa)") -> (Sun) | BL2: =BJ2+1 -> 2009-12-28 | BM2: =TEXT(BL2,"(aaa)") -> (Mon) | BN2: =BL2+1 -> 2009-12-29 | BO2: =TEXT(BN2,"(aaa)") -> (Tue) | BP2: =BN2+1 -> 2009-12-30 | BQ2: =TEXT(BP2,"(aaa)") -> (Wed) | BR2: =BP2+1 -> 2009-12-31 | BS2: =TEXT(BR2,"(aaa)") -> (Thu)
J3: 品名 | K3: 金額 | L3: 品名 | M3: 金額 | N3: 品名 | O3: 金額 | P3: 品名 | Q3: 金額 | R3: 品名 | S3: 金額 | T3: 品名 | U3: 金額 | V3: 品名 | W3: 金額 | X3: 品名 | Y3: 金額 | Z3: 品名 | AA3: 金額 | AB3: 品名 | AC3: 金額 | AD3: 品名 | AE3: 金額 | AF3: 品名 | AG3: 金額 | AH3: 品名 | AI3: 金額 | AJ3: 品名 | AK3: 金額 | AL3: 品名 | AM3: 金額 | AN3: 品名 | AO3: 金額 | AP3: 品名 | AQ3: 金額 | AR3: 品名 | AS3: 金額 | AT3: 品名 | AU3: 金額 | AV3: 品名 | AW3: 金額 | AX3: 品名 | AY3: 金額 | AZ3: 品名 | BA3: 金額 | BB3: 品名 | BC3: 金額 | BD3: 品名 | BE3: 金額 | BF3: 品名 | BG3: 金額 | BH3: 品名 | BI3: 金額 | BJ3: 品名 | BK3: 金額 | BL3: 品名 | BM3: 金額 | BN3: 品名 | BO3: 金額 | BP3: 品名 | BQ3: 金額 | BR3: 品名 | BS3: 金額
B4: 今月の収入 | F4: 今月の生活費 | I4: 主食 | J4: 米５Ｋｇ | K4: 2,600
B5: 項目 | C5: 金額 | D5: 入金日 | F5: 項目 | G5: 購入金額 | J5: 食パン | K5: 160
B6: 給料（手取り） | C6: 300,000 | F6: 食費合計 | G6: =SUM(J19:BS19) -> 6,951
F7: 日用雑貨合計 | G7: =SUM(J20:BS25) -> 398 | I7: 副食 | J7: 卵６個 | K7: 168 | L7: 鳥ムネ肉 | M7: 552
F8: 教育・教養費 | G8: =SUM(J26:BS27) -> 1200 | J8: キャベツ | K8: 200 | L8: 長ネギ３本 | M8: 250
B9: ボーナス | F9: 上記以外合計 | G9: =SUM(J28:BS39) -> 3500 | J9: ブロッコリー | K9: 250 | L9: ツナ缶+3 | M9: 346
B10: 収入合計 | C10: =SUM(C6:C9) -> ¥300,000 | F10: 生活費合計 | G10: =SUM(G6:G9) -> ¥12,049 | L10: りんご２個 | M10: 300
B13: 今月の固定支出
F14: 今月の残金
B15: 項目 | C15: 金額 | D15: 支払日 | I15: 嗜好品 | J15: ビール６本 | K15: 1,980 | L15: ポテトチップ | M15: 145
B16: 電気代 | C16: 4,500 | F16: =C10-C37-G10+SUM(J41:BS41) -> ¥116,231
B17: ガス代 | C17: 3,800
B18: 水道代 | C18: 1,040 | F18: 累計残金 | I18: 外食
B19: 電話代 | C19: 4,000 | I19: 食費合計 | K19: =SUM(K4:K18) -> ¥5,358 | M19: =SUM(M4:M18) -> ¥1,593 | O19: =SUM(O4:O18) -> ¥0 | Q19: =SUM(Q4:Q18) -> ¥0 | S19: =SUM(S4:S18) -> ¥0 | U19: =SUM(U4:U18) -> ¥0 | W19: =SUM(W4:W18) -> ¥0 | Y19: =SUM(Y4:Y18) -> ¥0 | AA19: =SUM(AA4:AA18) -> ¥0 | AC19: =SUM(AC4:AC18) -> ¥0 | AE19: =SUM(AE4:AE18) -> ¥0 | AG19: =SUM(AG4:AG18) -> ¥0 | AI19: =SUM(AI4:AI18) -> ¥0 | AK19: =SUM(AK4:AK18) -> ¥0 | AM19: =SUM(AM4:AM18) -> ¥0 | AO19: =SUM(AO4:AO18) -> ¥0 | AQ19: =SUM(AQ4:AQ18) -> ¥0 | AS19: =SUM(AS4:AS18) -> ¥0 | AU19: =SUM(AU4:AU18) -> ¥0 | AW19: =SUM(AW4:AW18) -> ¥0 | AY19: =SUM(AY4:AY18) -> ¥0 | BA19: =SUM(BA4:BA18) -> ¥0 | BC19: =SUM(BC4:BC18) -> ¥0 | BE19: =SUM(BE4:BE18) -> ¥0 | BG19: =SUM(BG4:BG18) -> ¥0 | BI19: =SUM(BI4:BI18) -> ¥0 | BK19: =SUM(BK4:BK18) -> ¥0 | BM19: =SUM(BM4:BM18) -> ¥0 | BO19: =SUM(BO4:BO18) -> ¥0 | BQ19: =SUM(BQ4:BQ18) -> ¥0 | BS19: =SUM(BS4:BS18) -> ¥0
B20: 携帯電話代 | C20: 8,600 | F20: =F16 -> ¥116,231 | I20: 日用雑貨 | J20: T・ペーパー | K20: 398
B21: 新聞代 | C21: 2,980
B22: 受信料 | C22: 2,500 | F22: 今月のひとこと
B23: 住居費 | C23: 114,000
B24: インターネット代 | C24: 1,800
B25: 保険 | C25: 10,000
B26: 定期預金 | C26: 20,000 | I26: 教育・教養費 | L26: 書籍 | M26: 1,200
B27: ローン
B28: クレジット | I28: 衣料費
B29: 税金
B30: こづかい | I30: 医療費
B31: 貯金 | I31: 美容費 | L31: カット | M31: 3,500
I32: 交通費
I33: レジャー費
I34: 慶弔・交際費
I35: その他
B37: 固定支出合計 | C37: =SUM(C16:C36) -> ¥173,220
I40: 支出合計 | K40: =SUM(K19:K39) -> ¥5,756 | M40: =SUM(M19:M39) -> ¥6,293 | O40: =SUM(O19:O39) -> ¥0 | Q40: =SUM(Q19:Q39) -> ¥0 | S40: =SUM(S19:S39) -> ¥0 | U40: =SUM(U19:U39) -> ¥0 | W40: =SUM(W19:W39) -> ¥0 | Y40: =SUM(Y19:Y39) -> ¥0 | AA40: =SUM(AA19:AA39) -> ¥0 | AC40: =SUM(AC19:AC39) -> ¥0 | AE40: =SUM(AE19:AE39) -> ¥0 | AG40: =SUM(AG19:AG39) -> ¥0 | AI40: =SUM(AI19:AI39) -> ¥0 | AK40: =SUM(AK19:AK39) -> ¥0 | AM40: =SUM(AM19:AM39) -> ¥0 | AO40: =SUM(AO19:AO39) -> ¥0 | AQ40: =SUM(AQ19:AQ39) -> ¥0 | AS40: =SUM(AS19:AS39) -> ¥0 | AU40: =SUM(AU19:AU39) -> ¥0 | AW40: =SUM(AW19:AW39) -> ¥0 | AY40: =SUM(AY19:AY39) -> ¥0 | BA40: =SUM(BA19:BA39) -> ¥0 | BC40: =SUM(BC19:BC39) -> ¥0 | BE40: =SUM(BE19:BE39) -> ¥0 | BG40: =SUM(BG19:BG39) -> ¥0 | BI40: =SUM(BI19:BI39) -> ¥0 | BK40: =SUM(BK19:BK39) -> ¥0 | BM40: =SUM(BM19:BM39) -> ¥0 | BO40: =SUM(BO19:BO39) -> ¥0 | BQ40: =SUM(BQ19:BQ39) -> ¥0 | BS40: =SUM(BS19:BS39) -> ¥0
I41: 臨時収入 | M41: ¥1,500
I42: 差引残高 | K42: =C10-C37-K40+K41 -> ¥121,024 | M42: =K42-M40+M41 -> ¥116,231 | O42: =M42-O40+O41 -> ¥116,231 | Q42: =O42-Q40+Q41 -> ¥116,231 | S42: =Q42-S40+S41 -> ¥116,231 | U42: =S42-U40+U41 -> ¥116,231 | W42: =U42-W40+W41 -> ¥116,231 | Y42: =W42-Y40+Y41 -> ¥116,231 | AA42: =Y42-AA40+AA41 -> ¥116,231 | AC42: =AA42-AC40+AC41 -> ¥116,231 | AE42: =AC42-AE40+AE41 -> ¥116,231 | AG42: =AE42-AG40+AG41 -> ¥116,231 | AI42: =AG42-AI40+AI41 -> ¥116,231 | AK42: =AI42-AK40+AK41 -> ¥116,231 | AM42: =AK42-AM40+AM41 -> ¥116,231 | AO42: =AM42-AO40+AO41 -> ¥116,231 | AQ42: =AO42-AQ40+AQ41 -> ¥116,231 | AS42: =AQ42-AS40+AS41 -> ¥116,231 | AU42: =AS42-AU40+AU41 -> ¥116,231 | AW42: =AU42-AW40+AW41 -> ¥116,231 | AY42: =AW42-AY40+AY41 -> ¥116,231 | BA42: =AY42-BA40+BA41 -> ¥116,231 | BC42: =BA42-BC40+BC41 -> ¥116,231 | BE42: =BC42-BE40+BE41 -> ¥116,231 | BG42: =BE42-BG40+BG41 -> ¥116,231 | BI42: =BG42-BI40+BI41 -> ¥116,231 | BK42: =BI42-BK40+BK41 -> ¥116,231 | BM42: =BK42-BM40+BM41 -> ¥116,231 | BO42: =BM42-BO40+BO41 -> ¥116,231 | BQ42: =BO42-BQ40+BQ41 -> ¥116,231 | BS42: =BQ42-BS40+BS41 -> ¥116,231
